Workbook

Sheet Custo por trabalhador
A1: ANEXO IV - PLANILHA DE CUSTOS E FORMAÇÃO DE PREÇOS
A2: MODELO DE FORMAÇÃO DE CUSTO MENSAL PARA UM EMPREGADO
A4: MÓDULO 1 - REMUNERAÇÃO
A6: SALÁRIO BASE
A8: SALÁRIO BASE
A9: CARGO A: SERVENTE 8 HORAS | B9: 1541.23
A10: CARGO B: ENCARREGADO | B10: 2302.14
A11: CARGO C: ZELADOR | B11: =+B10 -> 2302.14
A12: CARGO D: COPEIRA | B12: =+B9 -> 1541.23
A14: GRATIFICAÇÃO DE FUNÇÃO
A16: GRATIFICAÇÃO DE FUNÇÃO
A17: Categoria | B17: Base de cálculo | C17: Percentual | D17: Valor da Gratificação
A18: CARGO A: SERVENTE 8 HORAS | B18: =B9 -> 1541.23 | C18: 0 | D18: =B18*C18 -> 0
A19: CARGO B: ENCARREGADO | B19: =B10 -> 2302.14 | C19: 0 | D19: =B19*C19 -> 0
A20: CARGO C: ZELADOR | B20: =B11 -> 2302.14 | C20: 0 | D20: 0
A21: CARGO D: COPEIRA | B21: =B12 -> 1541.23 | C21: 0 | D21: 0
A23: ADICIONAIS (periculosidade ou insalubridade, se houver)
A25: ADICIONAL DE XXX
A26: Categoria | B26: Base de cálculo | C26: Percentual | D26: Valor
A27: CARGO A: SERVENTE 8 HORAS
A28: CARGO B: ENCARREGADO
A29: CARGO C: ZELADOR
A30: CARGO D: COPEIRA
A33: ADICIONAL NOTURNO
A35: ADICIONAL NOTURNO
A36: Categoria | B36: Base de Cálculo | C36: Proporção | D36: Percentual | E36: Valor
A37: CARGO A: SERVENTE 8 HORAS
A38: CARGO B: ENCARREGADO
A39: CARGO C: ZELADOR
A40: CARGO D: COPEIRA
A41: HORA NOTURNA REDUZIDA
A42: Categoria | B42: Base de Cálculo | C42: Proporção | D42: Percentual | E42: Valor
A43: CARGO A: SERVENTE 8 HORAS
A44: CARGO B: ENCARREGADO
A45: CARGO C: ZELADOR
A46: CARGO D: COPEIRA
A48: ADICIONAL POR TRABALHO NOTURNO
A49: Categoria | B49: Adicional Noturno | C49: Hora Noturna Reduzida | D49: Valor
A50: CARGO A: SERVENTE 8 HORAS
A51: CARGO B: ENCARREGADO
A52: CARGO C: ZELADOR
A53: CARGO D: COPEIRA
A55: ADICIONAL XXX
A57: ADICIONAL XXX
A58: Categoria | B58: Base de cálculo | C58: Percentual | D58: Valor
A59: CARGO A: SERVENTE 8 HORAS
A60: CARGO B: ENCARREGADO
A61: CARGO C: ZELADOR
A62: CARGO D: COPEIRA
A64: MÓDULO 1 - REMUNERAÇÃO
A66: MÓDULO 1 - REMUNERAÇÃO
A67: Categoria | B67: Salário Base | C67: Gratificação de função | D67: Adicional de Periculosidade ou Insalubridade | E67: Adicional Noturno | F67: Adicional XXX | G67: Total
A68: CARGO A: SERVENTE 8 HORAS | B68: =B9 -> 1541.23 | C68: =D18 -> 0 | D68: =D28 -> 0 | E68: =D50 -> 0 | F68: =D60 -> 0 | G68: =SUM(B68:F68) -> 1541.23
A69: CARGO B: ENCARREGADO | B69: =B19 -> 2302.14 | C69: =D19 -> 0 | D69: =D30 -> 0 | E69: =D51 -> 0 | F69: =D62 -> 0 | G69: =SUM(B69:F69) -> 2302.14
A70: CARGO C: ZELADOR | B70: =B20 -> 2302.14 | C70: =D20 -> 0 | D70: =D31 -> 0 | E70: =D52 -> 0 | F70: =D63 -> 0 | G70: 2302.14
A71: CARGO D: COPEIRA | B71: =B21 -> 1541.23 | C71: =D21 -> 0 | D71: =D32 -> 0 | E71: =D53 -> 0 | F71: =D64 -> 0 | G71: 1541.23
A73: MÓDULO 2 - ENCARGOS E BENEFÍCIOS (ANUAIS, MENSAIS E DIÁRIOS)
A75: SUBMÓDULO 2.1 – 13° SALÁRIO, FÉRIAS E ADICIONAL DE FÉRIAS
A77: 13° SALÁRIO Previsto no Decreto 57.155, de 1965.
A78: Categoria | B78: Base de cálculo | C78: Provisionamento Mensal | D78: Valor
A79: CARGO A: SERVENTE 8 HORAS | B79: =G68 -> 1541.23 | C79: =1/12 -> 0.08333333333 | D79: =B79*C79 -> 128.4358333
A80: CARGO B: ENCARREGADO | B80: =G69 -> 2302.14 | C80: 0.08333333333 | D80: =B80*C80 -> 191.845
A81: CARGO C: ZELADOR | B81: =G70 -> 2302.14 | C81: 0.08333333333 | D81: 191.845
A82: CARGO D: COPEIRA | B82: =G71 -> 1541.23 | C82: 0.08333333333 | D82: 128.4358333
A84: FÉRIAS Previsto no art. 7° da Constituição Federal
A85: Categoria | B85: Base de cálculo | C85: Provisionamento Mensal | D85: Valor
A86: CARGO A: SERVENTE 8 HORAS | B86: =G68 -> 1541.23 | C86: =1/12 -> 0.08333333333 | D86: =B86*C86 -> 128.4358333
A87: CARGO B: ENCARREGADO | B87: =G69 -> 2302.14 | C87: 0.08333333333 | D87: =B87*C87 -> 191.845
A88: CARGO C: ZELADOR | B88: =G70 -> 2302.14 | C88: 0.08333333333 | D88: 191.845
A89: CARGO D: COPEIRA | B89: =G71 -> 1541.23 | C89: 0.08333333333 | D89: 128.4358333
A91: ADICIONAL DE FÉRIAS - 1/3 CONSTITUCIONAL
A92: Categoria | B92: Base de cálculo | C92: Alíquota Adicional | D92: Provisionamento Mensal | E92: Valor
A93: CARGO A: SERVENTE 8 HORAS | B93: =G68 -> 1541.23 | C93: =1/3 -> 0.3333333333 | D93: =1/12 -> 0.08333333333 | E93: =B93*C93*D93 -> 42.81194444
A94: CARGO B: ENCARREGADO | B94: =G69 -> 2302.14 | C94: =1/3 -> 0.3333333333 | D94: 0.08333333333 | E94: =B94*C94*D94 -> 63.94833333
A95: CARGO C: ZELADOR | B95: =G70 -> 2302.14 | C95: 0.3333333333 | D95: 0.08333333333 | E95: 63.94833333
A96: CARGO D: COPEIRA | B96: =G71 -> 1541.23 | C96: 0.3333333333 | D96: 0.08333333333 | E96: 42.81194444
A98: SUBMÓDULO 2.1 – 13° SALÁRIO, FÉRIAS E ADICIONAL DE FÉRIAS
A99: Categoria | B99: 13° Salário | C99: Férias | D99: 1/3 Constitucional | E99: Total
A100: CARGO A: SERVENTE 8 HORAS | B100: =D79 -> 128.4358333 | C100: =D86 -> 128.4358333 | D100: =E93 -> 42.81194444 | E100: =SUM(B100:D100) -> 299.6836111
A101: CARGO B: ENCARREGADO | B101: =D80 -> 191.845 | C101: =D87 -> 191.845 | D101: =E94 -> 63.94833333 | E101: =SUM(B101:D101) -> 447.6383333
A102: CARGO C: ZELADOR | B102: =D81 -> 191.845 | C102: =D88 -> 191.845 | D102: =E95 -> 63.94833333 | E102: 447.6383333
A103: CARGO D: COPEIRA | B103: =D82 -> 128.4358333 | C103: =D89 -> 128.4358333 | D103: =E96 -> 42.81194444 | E103: 299.6836111
A105: SUBMÓDULO 2.2 - ENCARGOS PREVIDENCIÁRIOS E FGTS
A107: COMPOSIÇÃO DO GPS E FGTS
A108: Encargos | B108: Percentual
A109: INSS - empregador | B109: 0.2
A110: Salário-Educação | B110: 0.025
A111: SAT- GIL/RAT | B111: 0.03
A112: SESC | B112: 0.015
A113: SENAC | B113: 0.01
A114: SEBRAE | B114: 0.006
A115: INCRA | B115: 0.002
A116: FGTS | B116: 0.08
A117: TOTAL | B117: =SUM(B109:B116) -> 0.368
A119: GPS - GUIA DA PREVIDÊNCIA SOCIAL
A120: Categoria | B120: Base de cálculo | C120: Percentual | D120: Valor
A121: CARGO A: SERVENTE 8 HORAS | B121: =G68+E100 -> 1840.913611 | C121: =SUM($B$109:$B$115) -> 0.288 | D121: =B121*C121 -> 530.18312
A122: CARGO B: ENCARREGADO | B122: =G69+E101 -> 2749.778333 | C122: =SUM($B$109:$B$115) -> 0.288 | D122: =B122*C122 -> 791.93616
A123: CARGO C: ZELADOR | B123: =G70+E102 -> 2749.778333 | C123: 0.288 | D123: 791.93616
A124: CARGO D: COPEIRA | B124: =G71+E103 -> 1840.913611 | C124: 0.288 | D124: 530.18312
A126: FGTS - FUNDO DE GARANTIA POR TEMPO DE SERVIÇO
A127: Categoria | B127: Base de cálculo | C127: Percentual | D127: Valor
A128: CARGO A: SERVENTE 8 HORAS | B128: =G68+E100 -> 1840.913611 | C128: =$B$116 -> 0.08 | D128: =B128*C128 -> 147.2730889
A129: CARGO B: ENCARREGADO | B129: =G69+E101 -> 2749.778333 | C129: 0.08 | D129: =B129*C129 -> 219.9822667
A130: CARGO C: ZELADOR | B130: =G70+E102 -> 2749.778333 | C130: 0.08 | D130: 219.9822667
A131: CARGO D: COPEIRA | B131: =G71+E103 -> 1840.913611 | C131: 0.08 | D131: 147.2730889
A133: SUBMÓDULO 2.2 - ENCARGOS PREVIDENCIÁRIOS E FGTS
A134: Categoria | B134: GPS | C134: FGTS | D134: Total
A135: CARGO A: SERVENTE 8 HORAS | B135: =D121 -> 530.18312 | C135: =D128 -> 147.2730889 | D135: =B135+C135 -> 677.4562089
A136: CARGO B: ENCARREGADO | B136: =D122 -> 791.93616 | C136: =D129 -> 219.9822667 | D136: =B136+C136 -> 1011.918427
A137: CARGO C: ZELADOR | B137: =D123 -> 791.93616 | C137: =D130 -> 219.9822667 | D137: 1011.918427
A138: CARGO D: COPEIRA | B138: =D124 -> 530.18312 | C138: =D131 -> 147.2730889 | D138: 677.4562089
A140: SUBMÓDULO 2.3 - BENEFÍCIOS MENSAIS E DIÁRIOS
A141: VALE TRANSPORTE
A143: CUSTO DA PASSAGEM
A144: Categoria | B144: Vr. Unitário | C144: Vales por dia | D144: Dias efetivamente trabalhados | E144: Custo total
A145: CARGO A: SERVENTE 8 HORAS | B145: 4.25 | C145: 2 | D145: 22 | E145: =B145*C145*D145 -> 187
A146: CARGO B: ENCARREGADO | B146: =+B145 -> 4.25 | C146: 2 | D146: 22 | E146: =B146*C146*D146 -> 187
A147: CARGO C: ZELADOR | B147: =+B146 -> 4.25 | C147: 2 | D147: 22 | E147: 187
A148: CARGO D: COPEIRA | B148: =+B147 -> 4.25 | C148: 2 | D148: 22 | E148: 187
A150: DESCONTO DO VALE TRANSPORTE
A151: Categoria | B151: Base de cálculo | C151: Proporcionalidade | D151: Percentual | E151: Desconto
A152: CARGO A: SERVENTE 8 HORAS | B152: =B9 -> 1541.23 | C152: 1 | D152: 0.06 | E152: =B152*C152*D152 -> 92.4738
A153: CARGO B: ENCARREGADO | B153: =B10 -> 2302.14 | C153: 1 | D153: 0.06 | E153: =B153*C153*D153 -> 138.1284
A154: CARGO C: ZELADOR | B154: =B11 -> 2302.14 | C154: 1 | D154: 0.06 | E154: 138.1284
A155: CARGO D: COPEIRA | B155: =B12 -> 1541.23 | C155: 1 | D155: 0.06 | E155: 92.4738
A157: CUSTO EFETIVO DO VALE TRANSPORTE
A158: Categoria | B158: Custo total | C158: Valor do desconto | D158: Custo efetivo
A159: CARGO A: SERVENTE 8 HORAS | B159: =E145 -> 187 | C159: =E152 -> 92.4738 | D159: =B159-C159 -> 94.5262
A160: CARGO B: ENCARREGADO | B160: =E146 -> 187 | C160: =E153 -> 138.1284 | D160: =B160-C160 -> 48.8716
A161: CARGO C: ZELADOR | B161: =E147 -> 187 | C161: =E154 -> 138.1284 | D161: 48.8716
A162: CARGO D: COPEIRA | B162: =E148 -> 187 | C162: =E155 -> 92.4738 | D162: 94.5262
A164: VALE ALIMENTAÇÃO/REFEIÇÃO
A165: VALE ALIMENTAÇÃO/REFEIÇÃO
A166: Categoria | B166: Valor diário | C166: Dias efetivamente trabalhados | D166: Valor
A167: CARGO A: SERVENTE 8 HORAS | B167: 27.24 | C167: =D145 -> 22 | D167: =B167*C167 -> 599.28
A168: CARGO B: ENCARREGADO | B168: =B167 -> 27.24 | C168: =D146 -> 22 | D168: =B168*C168 -> 599.28
A169: CARGO C: ZELADOR | B169: =B167 -> 27.24 | C169: =D147 -> 22 | D169: 599.28
A170: CARGO D: COPEIRA | B170: =B167 -> 27.24 | C170: =D148 -> 22 | D170: 599.28
A172: DESCONTO DO VALE ALIMENTAÇÃO/REFEIÇÃO
A173: Categoria | B173: Base de cálculo | C173: Percentual | D173: Desconto
A174: CARGO A: SERVENTE 8 HORAS | B174: =D167 -> 599.28 | C174: 0.2 | D174: =B174*C174 -> 119.856
A175: CARGO B: ENCARREGADO | B175: =D168 -> 599.28 | C175: =C174 -> 0.2 | D175: =B175*C175 -> 119.856
A176: CARGO C: ZELADOR | B176: =D169 -> 599.28 | C176: =C174 -> 0.2 | D176: 119.856
A177: CARGO D: COPEIRA | B177: =D170 -> 599.28 | C177: =C174 -> 0.2 | D177: 119.856
A179: CUSTO EFETIVO DO VALE ALIMENTAÇÃO/REFEIÇÃO
A180: Categoria | B180: Custo total | C180: Desconto | D180: Custo efetivo
A181: CARGO A: SERVENTE 8 HORAS | B181: =D167 -> 599.28 | C181: =D174 -> 119.856 | D181: =B181-C181 -> 479.424
A182: CARGO B: ENCARREGADO | B182: =D168 -> 599.28 | C182: =D175 -> 119.856 | D182: =B182-C182 -> 479.424
A183: CARGO C: ZELADOR | B183: =D169 -> 599.28 | C183: =D176 -> 119.856 | D183: 479.424
A184: CARGO D: COPEIRA | B184: =D170 -> 599.28 | C184: =D177 -> 119.856 | D184: 479.424
A186: BENEFÍCIO XXX Utilizar este campo em caso de outros benefícios previstos em Convenção Coletiva, sempre especificando o tipo, finalidade e previsão legal do mesmo.
A188: BENEFÍCIO Assistência médica e famíliar
A189: Categoria | B189: R$ por empregado
A190: CARGO A: SERVENTE 8 HORAS | B190: 47.15
A191: CARGO B: ENCARREGADO | B191: =B190 -> 47.15
A192: CARGO C: ZELADOR | B192: =B191 -> 47.15
A193: CARGO D: COPEIRA | B193: 47.15
A195: BENEFÍCIO YYY Utilizar este campo em caso de outros benefícios previstos em Convenção Coletiva, sempre especificando o tipo, finalidade e previsão legal do mesmo.
A197: BENEFÍCIO Seguro de vida, invalidez e funeral
A198: Categoria | B198: R$ por empregado
A199: CARGO A: SERVENTE 8 HORAS | B199: =1.83*(1+7%) -> 1.9581
A200: CARGO B: ENCARREGADO | B200: =B199 -> 1.9581
A201: CARGO C: ZELADOR | B201: =B200 -> 1.9581
A202: CARGO D: COPEIRA | B202: 1.9581
A204: SUBMÓDULO 2.3 - BENEFÍCIOS MENSAIS E DIÁRIOS
A205: Categoria | B205: Vale Transporte | C205: Vale Refeição | D205: =A188 -> BENEFÍCIO Assistência médica e famíliar | E205: =A197 -> BENEFÍCIO Seguro de vida, invalidez e funeral | F205: Total
A206: CARGO A: SERVENTE 8 HORAS | B206: =D159 -> 94.5262 | C206: =D181 -> 479.424 | D206: =B190 -> 47.15 | E206: =B199 -> 1.9581 | F206: =SUM(B206:E206) -> 623.0583
A207: CARGO B: ENCARREGADO | B207: =D160 -> 48.8716 | C207: =D182 -> 479.424 | D207: =B191 -> 47.15 | E207: =B200 -> 1.9581 | F207: =SUM(B207:E207) -> 577.4037
A208: CARGO C: ZELADOR | B208: =D161 -> 48.8716 | C208: =D183 -> 479.424 | D208: =B192 -> 47.15 | E208: =B201 -> 1.9581 | F208: 577.4037
A209: CARGO D: COPEIRA | B209: =D162 -> 94.5262 | C209: =D184 -> 479.424 | D209: =B193 -> 47.15 | E209: =B202 -> 1.9581 | F209: 623.0583
A211: MÓDULO 2 - ENCARGOS E BENEFÍCIOS (ANUAIS, MENSAIS E DIÁRIOS)
A213: MÓDULO 2 - ENCARGOS E BENEFÍCIOS (ANUAIS, MENSAIS E DIÁRIOS)
A214: Categoria | B214: Submódulo 2.1 | C214: Submódulo 2.2 | D214: Submódulo 2.3 | E214: Total
A215: CARGO A: SERVENTE 8 HORAS | B215: =E100 -> 299.6836111 | C215: =D135 -> 677.4562089 | D215: =F206 -> 623.0583 | E215: =SUM(B215:D215) -> 1600.19812
A216: CARGO B: ENCARREGADO | B216: =E101 -> 447.6383333 | C216: =D136 -> 1011.918427 | D216: =F207 -> 577.4037 | E216: =SUM(B216:D216) -> 2036.96046
A217: CARGO C: ZELADOR | B217: =E102 -> 447.6383333 | C217: =D137 -> 1011.918427 | D217: =F208 -> 577.4037 | E217: 2036.96046
A218: CARGO D: COPEIRA | B218: =E103 -> 299.6836111 | C218: =D138 -> 677.4562089 | D218: =F209 -> 623.0583 | E218: 1600.19812
A220: MÓDULO 3 - PROVISÃO PARA RESCISÃO
A222: PERCENTUAIS POR TIPO DE DESLIGAMENTO
A223: Tipos | B223: Percentual
A224: Demissão SEM justa Causa | B224: 1
A225: SEM justa Causa AP INDENIZADO | B225: =B224*45% -> 0.45
A226: SEM justa Causa AP TRABALHADO | B226: =B224*55% -> 0.55
A227: Demissão COM justa Causa | B227: 0
A228: Desligamentos OUTROS TIPOS
A229: TOTAL | B229: =SUM(B225:B228) -> 1
A231: SUBMÓDULO 3.1 - AVISO PRÉVIO INDENIZADO
A233: AVISO PRÉVIO INDENIZADO
A234: Categoria | B234: Base de cálculo | C234: Provisionamento Mensal | D234: Valor
A235: CARGO A: SERVENTE 8 HORAS | B235: =G68+(E215-D121) -> 2611.245 | C235: 12 | D235: =B235/C235 -> 217.60375
A236: CARGO B: ENCARREGADO | B236: =G69+(E216-D122) -> 3547.1643 | C236: =C235 -> 12 | D236: =B236/C236 -> 295.597025
A237: CARGO C: ZELADOR | B237: =G70+(E217-D123) -> 3547.1643 | C237: =C236 -> 12 | D237: 295.597025
A238: CARGO D: COPEIRA | B238: =G71+(E218-D124) -> 2611.245 | C238: 12 | D238: 217.60375
A240: MULTA DO FGTS E CONTRIBUIÇÃO SOCIAL SOBRE O AVISO PRÉVIO INDENIZADO
A241: Categoria | B241: Base de cálculo | C241: Percentual da Multa | D241: Valor
A242: CARGO A: SERVENTE 8 HORAS | B242: =D128 -> 147.2730889 | C242: 0.4 | D242: =B242*C242 -> 58.90923556
A243: CARGO B: ENCARREGADO | B243: =D129 -> 219.9822667 | C243: =C242 -> 0.4 | D243: =B243*C243 -> 87.99290667
A244: CARGO C: ZELADOR | B244: =D130 -> 219.9822667 | C244: =C243 -> 0.4 | D244: 87.99290667
A245: CARGO D: COPEIRA | B245: =D131 -> 147.2730889 | C245: 0.4 | D245: 58.90923556
... 236 more rows

Sheet Servente 8h
A1: PLANILHA DE CUSTOS E FORMAÇÃO DE PREÇOS
A2: MODELO PARA A CONSOLIDAÇÃO E APRESENTAÇÃO DE PROPOSTAS
A3: Com ajustes após publicação da Lei n° 13.467, de 2017.
A6: Módulo 1 - Composição da Remuneração
A8: 1 | B8: Composição da Remuneração | C8: Valor (R$)
A9: A | B9: Salário-Base | C9: ='Custo por trabalhador'!B9 -> 1541.23 | F9: =C9*'ORÇAMENTO ESTIMADO'!$G$9 -> 13871.07
A10: B | B10: Adicional de Periculosidade | C10: ='Custo por trabalhador'!D68 -> 0 | F10: =C10*'ORÇAMENTO ESTIMADO'!$G$9 -> 0
A11: C | B11: Adicional de Insalubridade | C11: ='Custo por trabalhador'!D68 -> 0 | F11: =C11*'ORÇAMENTO ESTIMADO'!$G$9 -> 0
A12: D | B12: Adicional Noturno | C12: ='Custo por trabalhador'!E68 -> 0 | F12: =C12*'ORÇAMENTO ESTIMADO'!$G$9 -> 0
A13: E | B13: Adicional de Hora Noturna Reduzida | C13: ='Custo por trabalhador'!F68 -> 0 | F13: =C13*'ORÇAMENTO ESTIMADO'!$G$9 -> 0
F14: =C14*'ORÇAMENTO ESTIMADO'!$G$9 -> 0
A15: G | B15: Outros (especificar) | F15: =C15*'ORÇAMENTO ESTIMADO'!$G$9 -> 0
A16: Total | C16: =SUM(C9:C15) -> 1541.23 | F16: =C16*'ORÇAMENTO ESTIMADO'!$G$9 -> 13871.07
F17: =C17*'ORÇAMENTO ESTIMADO'!$G$9 -> 0
F18: =C18*'ORÇAMENTO ESTIMADO'!$G$9 -> 0
A19: Módulo 2 - Encargos e Benefícios Anuais, Mensais e Diários | F19: =C19*'ORÇAMENTO ESTIMADO'!$G$9 -> 0
F20: =C20*'ORÇAMENTO ESTIMADO'!$G$9 -> 0
A21: Submódulo 2.1 - 13º (décimo terceiro) Salário, Férias e Adicional de Férias | F21: =C21*'ORÇAMENTO ESTIMADO'!$G$9 -> 0
F22: =C22*'ORÇAMENTO ESTIMADO'!$G$9 -> 0
A23: 2.1 | B23: 13º (décimo terceiro) Salário, Férias e Adicional de Férias | C23: Valor (R$) | F23: =C23*'ORÇAMENTO ESTIMADO'!$G$9 -> 
A24: A | B24: 13º (décimo terceiro) Salário | C24: ='Custo por trabalhador'!D79 -> 128.4358333 | F24: =C24*'ORÇAMENTO ESTIMADO'!$G$9 -> 1155.9225
A25: B | B25: Férias e Adicional de Férias | C25: ='Custo por trabalhador'!C100+'Custo por trabalhador'!D100 -> 171.2477778 | F25: =C25*'ORÇAMENTO ESTIMADO'!$G$9 -> 1541.23
A26: Total | C26: =SUM(C24:C25) -> 299.6836111 | F26: =C26*'ORÇAMENTO ESTIMADO'!$G$9 -> 2697.1525
F27: =C27*'ORÇAMENTO ESTIMADO'!$G$9 -> 0
F28: =C28*'ORÇAMENTO ESTIMADO'!$G$9 -> 0
A29: Submódulo 2.2 - Encargos Previdenciários (GPS), Fundo de Garantia por Tempo de Serviço (FGTS) e outras contribuições. | F29: =C29*'ORÇAMENTO ESTIMADO'!$G$9 -> 0
F30: =C30*'ORÇAMENTO ESTIMADO'!$G$9 -> 0
A31: 2.2 | B31: GPS, FGTS e outras contribuições | C31: Percentual (%) | D31: Valor (R$) | F31: =C31*'ORÇAMENTO ESTIMADO'!$G$9 -> 
A32: A | B32: INSS | C32: ='Custo por trabalhador'!B109 -> 0.2 | D32: =C32*'Custo por trabalhador'!B121 -> 368.1827222 | F32: =D32*'ORÇAMENTO ESTIMADO'!$G$9 -> 3313.6445
A33: B | B33: Salário Educação | C33: ='Custo por trabalhador'!B110 -> 0.025 | D33: =C33*'Custo por trabalhador'!B121 -> 46.02284028 | F33: =D33*'ORÇAMENTO ESTIMADO'!$G$9 -> 414.2055625
A34: C | B34: SAT | C34: ='Custo por trabalhador'!B111 -> 0.03 | D34: =C34*'Custo por trabalhador'!B121 -> 55.22740833 | F34: =D34*'ORÇAMENTO ESTIMADO'!$G$9 -> 497.046675
A35: D | B35: SESC ou SESI | C35: ='Custo por trabalhador'!B112 -> 0.015 | D35: =C35*'Custo por trabalhador'!B121 -> 27.61370417 | F35: =D35*'ORÇAMENTO ESTIMADO'!$G$9 -> 248.5233375
A36: E | B36: SENAI - SENAC | C36: ='Custo por trabalhador'!B113 -> 0.01 | D36: =C36*'Custo por trabalhador'!B121 -> 18.40913611 | F36: =D36*'ORÇAMENTO ESTIMADO'!$G$9 -> 165.682225
A37: F | B37: SEBRAE | C37: ='Custo por trabalhador'!B114 -> 0.006 | D37: =C37*'Custo por trabalhador'!B121 -> 11.04548167 | F37: =D37*'ORÇAMENTO ESTIMADO'!$G$9 -> 99.409335
A38: G | B38: INCRA | C38: ='Custo por trabalhador'!B115 -> 0.002 | D38: =C38*'Custo por trabalhador'!B121 -> 3.681827222 | F38: =D38*'ORÇAMENTO ESTIMADO'!$G$9 -> 33.136445
A39: H | B39: FGTS | C39: ='Custo por trabalhador'!B116 -> 0.08 | D39: ='Custo por trabalhador'!D128 -> 147.2730889 | F39: =D39*'ORÇAMENTO ESTIMADO'!$G$9 -> 1325.4578
A40: Total | D40: =SUM(D32:D39) -> 677.4562089 | F40: =D40*'ORÇAMENTO ESTIMADO'!$G$9 -> 6097.10588
F41: =C41*'ORÇAMENTO ESTIMADO'!$G$9 -> 0
F42: =C42*'ORÇAMENTO ESTIMADO'!$G$9 -> 0
A43: Submódulo 2.3 - Benefícios Mensais e Diários. | F43: =C43*'ORÇAMENTO ESTIMADO'!$G$9 -> 0
F44: =C44*'ORÇAMENTO ESTIMADO'!$G$9 -> 0
A45: 2.3 | B45: Benefícios Mensais e Diários | C45: Valor (R$) | F45: =C45*'ORÇAMENTO ESTIMADO'!$G$9 -> 
A46: A | B46: Transporte | C46: ='Custo por trabalhador'!D159 -> 94.5262 | F46: =C46*'ORÇAMENTO ESTIMADO'!$G$9 -> 850.7358
A47: B | B47: Auxílio-Refeição/Alimentação | C47: ='Custo por trabalhador'!D181 -> 479.424 | F47: =C47*'ORÇAMENTO ESTIMADO'!$G$9 -> 4314.816
A48: C | B48: Assistência médica e familiar | C48: ='Custo por trabalhador'!D206 -> 47.15 | F48: =C48*'ORÇAMENTO ESTIMADO'!$G$9 -> 424.35
A49: D | B49: Seguro de vida, invalidez e funeral | C49: ='Custo por trabalhador'!E206 -> 1.9581 | F49: =C49*'ORÇAMENTO ESTIMADO'!$G$9 -> 17.6229
A50: Total | C50: =SUM(C46:C49) -> 623.0583 | F50: =C50*'ORÇAMENTO ESTIMADO'!$G$9 -> 5607.5247
F51: =C51*'ORÇAMENTO ESTIMADO'!$G$9 -> 0
F52: =C52*'ORÇAMENTO ESTIMADO'!$G$9 -> 0
A53: Quadro-Resumo do Módulo 2 - Encargos e Benefícios anuais, mensais e diários | F53: =C53*'ORÇAMENTO ESTIMADO'!$G$9 -> 0
F54: =C54*'ORÇAMENTO ESTIMADO'!$G$9 -> 0
A55: 2 | B55: Encargos e Benefícios Anuais, Mensais e Diários | C55: Valor (R$) | F55: =C55*'ORÇAMENTO ESTIMADO'!$G$9 -> 
A56: 2.1 | B56: 13º (décimo terceiro) Salário, Férias e Adicional de Férias | C56: ='Custo por trabalhador'!B215 -> 299.6836111 | F56: =C56*'ORÇAMENTO ESTIMADO'!$G$9 -> 2697.1525
A57: 2.2 | B57: GPS, FGTS e outras contribuições | C57: ='Custo por trabalhador'!C215 -> 677.4562089 | F57: =C57*'ORÇAMENTO ESTIMADO'!$G$9 -> 6097.10588
A58: 2.3 | B58: Benefícios Mensais e Diários | C58: ='Custo por trabalhador'!D215 -> 623.0583 | F58: =C58*'ORÇAMENTO ESTIMADO'!$G$9 -> 5607.5247
A59: Total | C59: =SUM(C56:C58) -> 1600.19812 | F59: =C59*'ORÇAMENTO ESTIMADO'!$G$9 -> 14401.78308
F60: =C60*'ORÇAMENTO ESTIMADO'!$G$9 -> 0
F61: =C61*'ORÇAMENTO ESTIMADO'!$G$9 -> 0
A62: Módulo 3 - Provisão para Rescisão | F62: =C62*'ORÇAMENTO ESTIMADO'!$G$9 -> 0
F63: =C63*'ORÇAMENTO ESTIMADO'!$G$9 -> 0
A64: 3 | B64: Provisão para Rescisão | C64: Valor (R$) | F64: =C64*'ORÇAMENTO ESTIMADO'!$G$9 -> 
A65: A | B65: Aviso Prévio Indenizado | C65: ='Custo por trabalhador'!D235*'Custo por trabalhador'!C249 -> 97.9216875 | F65: =C65*'ORÇAMENTO ESTIMADO'!$G$9 -> 881.2951875
A66: B | B66: Incidência do FGTS sobre o Aviso Prévio Indenizado | F66: =C66*'ORÇAMENTO ESTIMADO'!$G$9 -> 0
A67: C | B67: Multa do FGTS e contribuição social sobre o Aviso Prévio Indenizado | C67: ='Custo por trabalhador'!D242*'Custo por trabalhador'!C249 -> 26.509156 | F67: =C67*'ORÇAMENTO ESTIMADO'!$G$9 -> 238.582404
A68: D | B68: Aviso Prévio Trabalhado | C68: ='Custo por trabalhador'!D258*'Custo por trabalhador'!C272 -> 33.59582851 | F68: =C68*'ORÇAMENTO ESTIMADO'!$G$9 -> 302.3624566
A69: E | B69: Incidência dos encargos do submódulo 2.2 sobre o Aviso Prévio Trabalhado | F69: =C69*'ORÇAMENTO ESTIMADO'!$G$9 -> 0
A70: F | B70: Multa do FGTS e contribuição social sobre o Aviso Prévio Trabalhado | C70: ='Custo por trabalhador'!D265*'Custo por trabalhador'!C272 -> 40.50009944 | F70: =C70*'ORÇAMENTO ESTIMADO'!$G$9 -> 364.500895
A71: Total | C71: =SUM(C65:C70) -> 198.5267715 | F71: =C71*'ORÇAMENTO ESTIMADO'!$G$9 -> 1786.740943
F72: =C72*'ORÇAMENTO ESTIMADO'!$G$9 -> 0
F73: =C73*'ORÇAMENTO ESTIMADO'!$G$9 -> 0
A74: Módulo 4 - Custo de Reposição do Profissional Ausente | F74: =C74*'ORÇAMENTO ESTIMADO'!$G$9 -> 0
F75: =C75*'ORÇAMENTO ESTIMADO'!$G$9 -> 0
F76: =C76*'ORÇAMENTO ESTIMADO'!$G$9 -> 0
A77: Submódulo 4.1 - Ausências Legais | F77: =C77*'ORÇAMENTO ESTIMADO'!$G$9 -> 0
F78: =C78*'ORÇAMENTO ESTIMADO'!$G$9 -> 0
A79: 4.1 | B79: Ausências Legais | C79: Valor (R$) | F79: =C79*'ORÇAMENTO ESTIMADO'!$G$9 -> 
A80: A | B80: Férias | F80: =C80*'ORÇAMENTO ESTIMADO'!$G$9 -> 0
A81: B | B81: Ausências Legais | C81: ='Custo por trabalhador'!E349 -> 284.4884104 | F81: =C81*'ORÇAMENTO ESTIMADO'!$G$9 -> 2560.395694
A82: C | B82: Licença-Paternidade | F82: =C82*'ORÇAMENTO ESTIMADO'!$G$9 -> 0
A83: D | B83: Ausência por acidente de trabalho | F83: =C83*'ORÇAMENTO ESTIMADO'!$G$9 -> 0
A84: E | B84: Afastamento Maternidade | F84: =C84*'ORÇAMENTO ESTIMADO'!$G$9 -> 0
A85: F | B85: Outros (especificar) | F85: =C85*'ORÇAMENTO ESTIMADO'!$G$9 -> 0
A86: Total | C86: =C81 -> 284.4884104 | F86: =C86*'ORÇAMENTO ESTIMADO'!$G$9 -> 2560.395694
F87: =C87*'ORÇAMENTO ESTIMADO'!$G$9 -> 0
F88: =C88*'ORÇAMENTO ESTIMADO'!$G$9 -> 0
A89: Submódulo 4.2 - Intrajornada | F89: =C89*'ORÇAMENTO ESTIMADO'!$G$9 -> 0
F90: =C90*'ORÇAMENTO ESTIMADO'!$G$9 -> 0
A91: 4.2 | B91: Intrajornada | C91: Valor (R$) | F91: =C91*'ORÇAMENTO ESTIMADO'!$G$9 -> 
A92: A | B92: Intervalo para repouso e alimentação | C92: 0 | F92: =C92*'ORÇAMENTO ESTIMADO'!$G$9 -> 0
A93: Total | C93: =C92 -> 0 | F93: =C93*'ORÇAMENTO ESTIMADO'!$G$9 -> 0
F94: =C94*'ORÇAMENTO ESTIMADO'!$G$9 -> 0
F95: =C95*'ORÇAMENTO ESTIMADO'!$G$9 -> 0
A96: Quadro-Resumo do Módulo 4 - Custo de Reposição do Profissional Ausente | F96: =C96*'ORÇAMENTO ESTIMADO'!$G$9 -> 0
F97: =C97*'ORÇAMENTO ESTIMADO'!$G$9 -> 0
A98: 4 | B98: Custo de Reposição do Profissional Ausente | C98: Valor (R$) | F98: =C98*'ORÇAMENTO ESTIMADO'!$G$9 ->  | H98: 13240.15
A99: 4.1 | B99: Ausências Legais | C99: =C81 -> 284.4884104 | F99: =C99*'ORÇAMENTO ESTIMADO'!$G$9 -> 2560.395694 | H99: 13883.31
A100: 4.2 | B100: Intrajornada | C100: =C93 -> 0 | F100: =C100*'ORÇAMENTO ESTIMADO'!$G$9 -> 0 | H100: =H98/H99 -> 0.9536738717
A101: Total | C101: =SUM(C99:C100) -> 284.4884104 | F101: =C101*'ORÇAMENTO ESTIMADO'!$G$9 -> 2560.395694 | H101: =1-H100 -> 0.04632612828
F102: =C102*'ORÇAMENTO ESTIMADO'!$G$9 -> 0
F103: =C103*'ORÇAMENTO ESTIMADO'!$G$9 -> 0 | H103: 1.43
A104: Módulo 5 - Insumos Diversos | F104: =C104*'ORÇAMENTO ESTIMADO'!$G$9 -> 0 | H104: =H103*(1+H101) -> 1.496246363
F105: =C105*'ORÇAMENTO ESTIMADO'!$G$9 -> 0
A106: 5 | B106: Insumos Diversos | C106: Valor (R$) | F106: =C106*'ORÇAMENTO ESTIMADO'!$G$9 -> 
A107: A | B107: Uniformes | C107: ='Custo por trabalhador'!B473 -> 48.26472222 | F107: =C107*'ORÇAMENTO ESTIMADO'!$G$9 -> 434.3825
A108: B | B108: Materiais | C108: ='Custo por trabalhador'!D473 -> 595.7396296 | F108: =C108*'ORÇAMENTO ESTIMADO'!$G$9 -> 5361.656667
A109: C | B109: Equipamentos | C109: ='Custo por trabalhador'!C473 -> 9.737155093 | F109: =C109*'ORÇAMENTO ESTIMADO'!$G$9 -> 87.63439583
A110: D | B110: Outros (especificar) | F110: =C110*'ORÇAMENTO ESTIMADO'!$G$9 -> 0
A111: Total | C111: =SUM(C107:C110) -> 653.7415069 | F111: =C111*'ORÇAMENTO ESTIMADO'!$G$9 -> 5883.673563
F112: =C112*'ORÇAMENTO ESTIMADO'!$G$9 -> 0
F113: =C113*'ORÇAMENTO ESTIMADO'!$G$9 -> 0
A114: Módulo 6 - Custos Indiretos, Tributos e Lucro | F114: =C114*'ORÇAMENTO ESTIMADO'!$G$9 -> 0
F115: =C115*'ORÇAMENTO ESTIMADO'!$G$9 -> 0
A116: 6 | B116: Custos Indiretos, Tributos e Lucro | C116: Percentual (%) | D116: Valor (R$) | F116: =C116*'ORÇAMENTO ESTIMADO'!$G$9 -> 
A117: A | B117: Custos Indiretos | C117: ='Custo por trabalhador'!B481 -> 0.03 | D117: =C117*C134 -> 128.3455443 | F117: =D117*'ORÇAMENTO ESTIMADO'!$G$9 -> 1155.109898 | H117: =C134+D117 -> 4406.530353
A118: B | B118: Lucro | C118: ='Custo por trabalhador'!B483 -> 0.0679 | D118: =(C134+D117)*C118 -> 299.203411 | F118: =D118*'ORÇAMENTO ESTIMADO'!$G$9 -> 2692.830699 | H118: =C118*H117 -> 299.203411
A119: C | B119: Tributos | C119: =SUM(C120:C122) -> 0.1225 | D119: =((C134+D117+D118)/1-C119)*C119 -> 576.4373798 | F119: =D119*'ORÇAMENTO ESTIMADO'!$G$9 -> 5187.936419 | H119: =H117+H118 -> 4705.733764
B120: C.1. Tributos Federais (especificar) | C120: 0.0925 | F120: =D120*'ORÇAMENTO ESTIMADO'!$G$9 -> 0 | H120: =C119*H119 -> 576.4523861
B121: C.2. Tributos Estaduais (especificar) | F121: =D123*'ORÇAMENTO ESTIMADO'!$G$9 -> 9035.877016
B122: C.3. Tributos Municipais (especificar) | C122: 0.03 | F122: =D122*'ORÇAMENTO ESTIMADO'!$G$9 -> 0
A123: Total | D123: =SUM(D117:D120) -> 1003.986335 | F123: =D123*'ORÇAMENTO ESTIMADO'!$G$9 -> 9035.877016
F124: =C124*'ORÇAMENTO ESTIMADO'!$G$9 -> 0
F125: =C125*'ORÇAMENTO ESTIMADO'!$G$9 -> 0
A126: 2. QUADRO-RESUMO DO CUSTO POR EMPREGADO | F126: =C126*'ORÇAMENTO ESTIMADO'!$G$9 -> 0
F127: =C127*'ORÇAMENTO ESTIMADO'!$G$9 -> 0
B128: Mão de obra vinculada à execução contratual (valor por empregado) | C128: Valor (R$) | F128: =C128*'ORÇAMENTO ESTIMADO'!$G$9 -> 
A129: A | B129: Módulo 1 - Composição da Remuneração | C129: =C16 -> 1541.23 | F129: =C129*'ORÇAMENTO ESTIMADO'!$G$9 -> 13871.07
A130: B | B130: Módulo 2 - Encargos e Benefícios Anuais, Mensais e Diários | C130: =C59 -> 1600.19812 | F130: =C130*'ORÇAMENTO ESTIMADO'!$G$9 -> 14401.78308
A131: C | B131: Módulo 3 - Provisão para Rescisão | C131: =C71 -> 198.5267715 | F131: =C131*'ORÇAMENTO ESTIMADO'!$G$9 -> 1786.740943
A132: D | B132: Módulo 4 - Custo de Reposição do Profissional Ausente | C132: =C101 -> 284.4884104 | F132: =C132*'ORÇAMENTO ESTIMADO'!$G$9 -> 2560.395694
A133: E | B133: Módulo 5 - Insumos Diversos | C133: =C111 -> 653.7415069 | F133: =C133*'ORÇAMENTO ESTIMADO'!$G$9 -> 5883.673563
A134: Subtotal (A + B +C+ D+E) | C134: =SUM(C129:C133) -> 4278.184809 | F134: =C134*'ORÇAMENTO ESTIMADO'!$G$9 -> 38503.66328
A135: F | B135: Módulo 6 – Custos Indiretos, Tributos e Lucro | C135: =D123 -> 1003.986335 | F135: =C135*'ORÇAMENTO ESTIMADO'!$G$9 -> 9035.877016
A136: Valor Total por Empregado | C136: =C134+C135 -> 5282.171144 | F136: =C136*'ORÇAMENTO ESTIMADO'!$G$9 -> 47539.5403
C141: Valor do posto servente: | D141: =+C136 -> 5282.171144
C142: Valor dia | D142: =+C136/31 -> 170.3926175
C143: Dias trabalhados | D143: 16
C144: Valor a pagar | D144: =+D142*D143 -> 2726.281881
C146: Valor a descontar: | D146: =-D144+C136 -> 2555.889263

Sheet Encarregado
A1: PLANILHA DE CUSTOS E FORMAÇÃO DE PREÇOS
A2: MODELO PARA A CONSOLIDAÇÃO E APRESENTAÇÃO DE PROPOSTAS
A3: Com ajustes após publicação da Lei n° 13.467, de 2017.
A6: Módulo 1 - Composição da Remuneração
A8: 1 | B8: Composição da Remuneração | C8: Valor (R$)
A9: A | B9: Salário-Base | C9: ='Custo por trabalhador'!B10 -> 2302.14 | F9: =C9*'ORÇAMENTO ESTIMADO'!$G$10 -> 2302.14
A10: B | B10: Adicional de Periculosidade | C10: ='Custo por trabalhador'!D69 -> 0 | F10: =C10*'ORÇAMENTO ESTIMADO'!$G$10 -> 0
A11: C | B11: Adicional de Insalubridade | C11: ='Custo por trabalhador'!D69 -> 0 | F11: =C11*'ORÇAMENTO ESTIMADO'!$G$10 -> 0
A12: D | B12: Adicional Noturno | C12: ='Custo por trabalhador'!E69 -> 0 | F12: =C12*'ORÇAMENTO ESTIMADO'!$G$10 -> 0
A13: E | B13: Adicional de Hora Noturna Reduzida | C13: ='Custo por trabalhador'!F69 -> 0 | F13: =C13*'ORÇAMENTO ESTIMADO'!$G$10 -> 0
F14: =C14*'ORÇAMENTO ESTIMADO'!$G$10 -> 0
A15: G | B15: Outros (especificar) | F15: =C15*'ORÇAMENTO ESTIMADO'!$G$10 -> 0
A16: Total | C16: =SUM(C9:C15) -> 2302.14 | F16: =C16*'ORÇAMENTO ESTIMADO'!$G$10 -> 2302.14
F17: =C17*'ORÇAMENTO ESTIMADO'!$G$10 -> 0
F18: =C18*'ORÇAMENTO ESTIMADO'!$G$10 -> 0
A19: Módulo 2 - Encargos e Benefícios Anuais, Mensais e Diários | F19: =C19*'ORÇAMENTO ESTIMADO'!$G$10 -> 0
F20: =C20*'ORÇAMENTO ESTIMADO'!$G$10 -> 0
A21: Submódulo 2.1 - 13º (décimo terceiro) Salário, Férias e Adicional de Férias | F21: =C21*'ORÇAMENTO ESTIMADO'!$G$10 -> 0
F22: =C22*'ORÇAMENTO ESTIMADO'!$G$10 -> 0
A23: 2.1 | B23: 13º (décimo terceiro) Salário, Férias e Adicional de Férias | C23: Valor (R$) | F23: =C23*'ORÇAMENTO ESTIMADO'!$G$10 -> 
A24: A | B24: 13º (décimo terceiro) Salário | C24: ='Custo por trabalhador'!D80 -> 191.845 | F24: =C24*'ORÇAMENTO ESTIMADO'!$G$10 -> 191.845
A25: B | B25: Férias e Adicional de Férias | C25: ='Custo por trabalhador'!C101+'Custo por trabalhador'!D101 -> 255.7933333 | F25: =C25*'ORÇAMENTO ESTIMADO'!$G$10 -> 255.7933333
A26: Total | C26: =SUM(C24:C25) -> 447.6383333 | F26: =C26*'ORÇAMENTO ESTIMADO'!$G$10 -> 447.6383333
F27: =C27*'ORÇAMENTO ESTIMADO'!$G$10 -> 0
F28: =C28*'ORÇAMENTO ESTIMADO'!$G$10 -> 0
A29: Submódulo 2.2 - Encargos Previdenciários (GPS), Fundo de Garantia por Tempo de Serviço (FGTS) e outras contribuições. | F29: =C29*'ORÇAMENTO ESTIMADO'!$G$10 -> 0
F30: =C30*'ORÇAMENTO ESTIMADO'!$G$10 -> 0
A31: 2.2 | B31: GPS, FGTS e outras contribuições | C31: Percentual (%) | D31: Valor (R$) | F31: =C31*'ORÇAMENTO ESTIMADO'!$G$10 -> 
A32: A | B32: INSS | C32: ='Custo por trabalhador'!B109 -> 0.2 | D32: =C32*'Custo por trabalhador'!B122 -> 549.9556667 | F32: =D32*'ORÇAMENTO ESTIMADO'!$G$10 -> 549.9556667
A33: B | B33: Salário Educação | C33: ='Custo por trabalhador'!B110 -> 0.025 | D33: =C33*'Custo por trabalhador'!B122 -> 68.74445833 | F33: =D33*'ORÇAMENTO ESTIMADO'!$G$10 -> 68.74445833
A34: C | B34: SAT | C34: ='Custo por trabalhador'!B111 -> 0.03 | D34: =C34*'Custo por trabalhador'!B122 -> 82.49335 | F34: =D34*'ORÇAMENTO ESTIMADO'!$G$10 -> 82.49335
A35: D | B35: SESC ou SESI | C35: ='Custo por trabalhador'!B112 -> 0.015 | D35: =C35*'Custo por trabalhador'!B122 -> 41.246675 | F35: =D35*'ORÇAMENTO ESTIMADO'!$G$10 -> 41.246675
A36: E | B36: SENAI - SENAC | C36: ='Custo por trabalhador'!B113 -> 0.01 | D36: =C36*'Custo por trabalhador'!B122 -> 27.49778333 | F36: =D36*'ORÇAMENTO ESTIMADO'!$G$10 -> 27.49778333
A37: F | B37: SEBRAE | C37: ='Custo por trabalhador'!B114 -> 0.006 | D37: =C37*'Custo por trabalhador'!B122 -> 16.49867 | F37: =D37*'ORÇAMENTO ESTIMADO'!$G$10 -> 16.49867
A38: G | B38: INCRA | C38: ='Custo por trabalhador'!B115 -> 0.002 | D38: =C38*'Custo por trabalhador'!B122 -> 5.499556667 | F38: =D38*'ORÇAMENTO ESTIMADO'!$G$10 -> 5.499556667
A39: H | B39: FGTS | C39: ='Custo por trabalhador'!B116 -> 0.08 | D39: ='Custo por trabalhador'!D129 -> 219.9822667 | F39: =D39*'ORÇAMENTO ESTIMADO'!$G$10 -> 219.9822667
A40: Total | D40: =SUM(D32:D39) -> 1011.918427 | F40: =D40*'ORÇAMENTO ESTIMADO'!$G$10 -> 1011.918427
F41: =C41*'ORÇAMENTO ESTIMADO'!$G$10 -> 0
F42: =C42*'ORÇAMENTO ESTIMADO'!$G$10 -> 0
A43: Submódulo 2.3 - Benefícios Mensais e Diários. | F43: =C43*'ORÇAMENTO ESTIMADO'!$G$10 -> 0
F44: =C44*'ORÇAMENTO ESTIMADO'!$G$10 -> 0
A45: 2.3 | B45: Benefícios Mensais e Diários | C45: Valor (R$) | F45: =C45*'ORÇAMENTO ESTIMADO'!$G$10 -> 
A46: A | B46: Transporte | C46: ='Custo por trabalhador'!D160 -> 48.8716 | F46: =C46*'ORÇAMENTO ESTIMADO'!$G$10 -> 48.8716
A47: B | B47: Auxílio-Refeição/Alimentação | C47: ='Custo por trabalhador'!D182 -> 479.424 | F47: =C47*'ORÇAMENTO ESTIMADO'!$G$10 -> 479.424
A48: C | B48: Assistência médica e familiar | C48: ='Custo por trabalhador'!D207 -> 47.15 | F48: =C48*'ORÇAMENTO ESTIMADO'!$G$10 -> 47.15
A49: D | B49: Seguro de vida, invalidez e funeral | C49: ='Custo por trabalhador'!E207 -> 1.9581 | F49: =C49*'ORÇAMENTO ESTIMADO'!$G$10 -> 1.9581
A50: Total | C50: =SUM(C46:C49) -> 577.4037 | F50: =C50*'ORÇAMENTO ESTIMADO'!$G$10 -> 577.4037
F51: =C51*'ORÇAMENTO ESTIMADO'!$G$10 -> 0
F52: =C52*'ORÇAMENTO ESTIMADO'!$G$10 -> 0
A53: Quadro-Resumo do Módulo 2 - Encargos e Benefícios anuais, mensais e diários | F53: =C53*'ORÇAMENTO ESTIMADO'!$G$10 -> 0
F54: =C54*'ORÇAMENTO ESTIMADO'!$G$10 -> 0
A55: 2 | B55: Encargos e Benefícios Anuais, Mensais e Diários | C55: Valor (R$) | F55: =C55*'ORÇAMENTO ESTIMADO'!$G$10 -> 
A56: 2.1 | B56: 13º (décimo terceiro) Salário, Férias e Adicional de Férias | C56: ='Custo por trabalhador'!B216 -> 447.6383333 | F56: =C56*'ORÇAMENTO ESTIMADO'!$G$10 -> 447.6383333
A57: 2.2 | B57: GPS, FGTS e outras contribuições | C57: ='Custo por trabalhador'!C216 -> 1011.918427 | F57: =C57*'ORÇAMENTO ESTIMADO'!$G$10 -> 1011.918427
A58: 2.3 | B58: Benefícios Mensais e Diários | C58: ='Custo por trabalhador'!D216 -> 577.4037 | F58: =C58*'ORÇAMENTO ESTIMADO'!$G$10 -> 577.4037
A59: Total | C59: =SUM(C56:C58) -> 2036.96046 | F59: =C59*'ORÇAMENTO ESTIMADO'!$G$10 -> 2036.96046
F60: =C60*'ORÇAMENTO ESTIMADO'!$G$10 -> 0
F61: =C61*'ORÇAMENTO ESTIMADO'!$G$10 -> 0
A62: Módulo 3 - Provisão para Rescisão | F62: =C62*'ORÇAMENTO ESTIMADO'!$G$10 -> 0
F63: =C63*'ORÇAMENTO ESTIMADO'!$G$10 -> 0
A64: 3 | B64: Provisão para Rescisão | C64: Valor (R$) | F64: =C64*'ORÇAMENTO ESTIMADO'!$G$10 -> 
A65: A | B65: Aviso Prévio Indenizado | C65: ='Custo por trabalhador'!D236*'Custo por trabalhador'!C250 -> 133.0186612 | F65: =C65*'ORÇAMENTO ESTIMADO'!$G$10 -> 133.0186612
A66: B | B66: Incidência do FGTS sobre o Aviso Prévio Indenizado | F66: =C66*'ORÇAMENTO ESTIMADO'!$G$10 -> 0
A67: C | B67: Multa do FGTS e contribuição social sobre o Aviso Prévio Indenizado | C67: ='Custo por trabalhador'!D243*'Custo por trabalhador'!C250 -> 39.596808 | F67: =C67*'ORÇAMENTO ESTIMADO'!$G$10 -> 39.596808
A68: D | B68: Aviso Prévio Trabalhado | C68: ='Custo por trabalhador'!D259*'Custo por trabalhador'!C273 -> 46.40426881 | F68: =C68*'ORÇAMENTO ESTIMADO'!$G$10 -> 46.40426881
A69: E | B69: Incidência dos encargos do submódulo 2.2 sobre o Aviso Prévio Trabalhado | F69: =C69*'ORÇAMENTO ESTIMADO'!$G$10 -> 0
A70: F | B70: Multa do FGTS e contribuição social sobre o Aviso Prévio Trabalhado | C70: ='Custo por trabalhador'!D266*'Custo por trabalhador'!C273 -> 60.49512333 | F70: =C70*'ORÇAMENTO ESTIMADO'!$G$10 -> 60.49512333
A71: Total | C71: =SUM(C65:C70) -> 279.5148614 | F71: =C71*'ORÇAMENTO ESTIMADO'!$G$10 -> 279.5148614
F72: =C72*'ORÇAMENTO ESTIMADO'!$G$10 -> 0
F73: =C73*'ORÇAMENTO ESTIMADO'!$G$10 -> 0
A74: Módulo 4 - Custo de Reposição do Profissional Ausente | F74: =C74*'ORÇAMENTO ESTIMADO'!$G$10 -> 0
F75: =C75*'ORÇAMENTO ESTIMADO'!$G$10 -> 0
F76: =C76*'ORÇAMENTO ESTIMADO'!$G$10 -> 0
A77: Submódulo 4.1 - Ausências Legais | F77: =C77*'ORÇAMENTO ESTIMADO'!$G$10 -> 0
F78: =C78*'ORÇAMENTO ESTIMADO'!$G$10 -> 0
A79: 4.1 | B79: Ausências Legais | C79: Valor (R$) | F79: =C79*'ORÇAMENTO ESTIMADO'!$G$10 -> 
A80: A | B80: Férias | F80: =C80*'ORÇAMENTO ESTIMADO'!$G$10 -> 0
A81: B | B81: Ausências Legais | C81: ='Custo por trabalhador'!E350 -> 393.4012805 | F81: =C81*'ORÇAMENTO ESTIMADO'!$G$10 -> 393.4012805
A82: C | B82: Licença-Paternidade | F82: =C82*'ORÇAMENTO ESTIMADO'!$G$10 -> 0
A83: D | B83: Ausência por acidente de trabalho | F83: =C83*'ORÇAMENTO ESTIMADO'!$G$10 -> 0
A84: E | B84: Afastamento Maternidade | F84: =C84*'ORÇAMENTO ESTIMADO'!$G$10 -> 0
A85: F | B85: Outros (especificar) | F85: =C85*'ORÇAMENTO ESTIMADO'!$G$10 -> 0
A86: Total | C86: =SUM(C81:C85) -> 393.4012805 | F86: =C86*'ORÇAMENTO ESTIMADO'!$G$10 -> 393.4012805
F87: =C87*'ORÇAMENTO ESTIMADO'!$G$10 -> 0
F88: =C88*'ORÇAMENTO ESTIMADO'!$G$10 -> 0
A89: Submódulo 4.2 - Intrajornada | F89: =C89*'ORÇAMENTO ESTIMADO'!$G$10 -> 0
F90: =C90*'ORÇAMENTO ESTIMADO'!$G$10 -> 0
A91: 4.2 | B91: Intrajornada | C91: Valor (R$) | F91: =C91*'ORÇAMENTO ESTIMADO'!$G$10 -> 
A92: A | B92: Intervalo para repouso e alimentação | C92: 0 | F92: =C92*'ORÇAMENTO ESTIMADO'!$G$10 -> 0
A93: Total | C93: =C92 -> 0 | F93: =C93*'ORÇAMENTO ESTIMADO'!$G$10 -> 0
F94: =C94*'ORÇAMENTO ESTIMADO'!$G$10 -> 0
F95: =C95*'ORÇAMENTO ESTIMADO'!$G$10 -> 0
A96: Quadro-Resumo do Módulo 4 - Custo de Reposição do Profissional Ausente | F96: =C96*'ORÇAMENTO ESTIMADO'!$G$10 -> 0
F97: =C97*'ORÇAMENTO ESTIMADO'!$G$10 -> 0
A98: 4 | B98: Custo de Reposição do Profissional Ausente | C98: Valor (R$) | F98: =C98*'ORÇAMENTO ESTIMADO'!$G$10 -> 
A99: 4.1 | B99: Ausências Legais | C99: =C86 -> 393.4012805 | F99: =C99*'ORÇAMENTO ESTIMADO'!$G$10 -> 393.4012805
A100: 4.2 | B100: Intrajornada | C100: =C93 -> 0 | F100: =C100*'ORÇAMENTO ESTIMADO'!$G$10 -> 0
A101: Total | C101: =SUM(C99:C100) -> 393.4012805 | F101: =C101*'ORÇAMENTO ESTIMADO'!$G$10 -> 393.4012805
F102: =C102*'ORÇAMENTO ESTIMADO'!$G$10 -> 0
F103: =C103*'ORÇAMENTO ESTIMADO'!$G$10 -> 0
A104: Módulo 5 - Insumos Diversos | F104: =C104*'ORÇAMENTO ESTIMADO'!$G$10 -> 0
F105: =C105*'ORÇAMENTO ESTIMADO'!$G$10 -> 0
A106: 5 | B106: Insumos Diversos | C106: Valor (R$) | F106: =C106*'ORÇAMENTO ESTIMADO'!$G$10 -> 
A107: A | B107: Uniformes | C107: ='Custo por trabalhador'!B474 -> 48.26472222 | F107: =C107*'ORÇAMENTO ESTIMADO'!$G$10 -> 48.26472222
A108: B | B108: Materiais | C108: ='Custo por trabalhador'!D474 -> 0 | F108: =C108*'ORÇAMENTO ESTIMADO'!$G$10 -> 0
A109: C | B109: Equipamentos | C109: ='Custo por trabalhador'!C474 -> 0 | F109: =C109*'ORÇAMENTO ESTIMADO'!$G$10 -> 0
A110: D | B110: Outros (especificar) | F110: =C110*'ORÇAMENTO ESTIMADO'!$G$10 -> 0
A111: Total | C111: =SUM(C107:C110) -> 48.26472222 | F111: =C111*'ORÇAMENTO ESTIMADO'!$G$10 -> 48.26472222
F112: =C112*'ORÇAMENTO ESTIMADO'!$G$10 -> 0
F113: =C113*'ORÇAMENTO ESTIMADO'!$G$10 -> 0
A114: Módulo 6 - Custos Indiretos, Tributos e Lucro | F114: =C114*'ORÇAMENTO ESTIMADO'!$G$10 -> 0
F115: =C115*'ORÇAMENTO ESTIMADO'!$G$10 -> 0
A116: 6 | B116: Custos Indiretos, Tributos e Lucro | C116: Percentual (%) | D116: Valor (R$) | F116: =C116*'ORÇAMENTO ESTIMADO'!$G$10 -> 
A117: A | B117: Custos Indiretos | C117: ='Custo por trabalhador'!B481 -> 0.03 | D117: =C117*C134 -> 151.8084397 | F117: =D117*'ORÇAMENTO ESTIMADO'!$G$10 -> 151.8084397
A118: B | B118: Lucro | C118: ='Custo por trabalhador'!B483 -> 0.0679 | D118: =(C134+D117)*C118 -> 353.900895 | F118: =D118*'ORÇAMENTO ESTIMADO'!$G$10 -> 353.900895
A119: C | B119: Tributos | C119: =SUM(C120:C122) -> 0.1225 | D119: =((C134+D117+D118)/1-C119)*C119 -> 681.8188495 | F119: =D119*'ORÇAMENTO ESTIMADO'!$G$10 -> 681.8188495
B120: C.1. Tributos Federais (especificar) | C120: 0.0925 | F120: =D120*'ORÇAMENTO ESTIMADO'!$G$10 -> 0
B121: C.2. Tributos Estaduais (especificar) | F121: =D121*'ORÇAMENTO ESTIMADO'!$G$10 -> 0
B122: C.3. Tributos Municipais (especificar) | C122: 0.03 | F122: =D122*'ORÇAMENTO ESTIMADO'!$G$10 -> 0
A123: Total | D123: =SUM(D117:D119) -> 1187.528184 | F123: =D123*'ORÇAMENTO ESTIMADO'!$G$10 -> 1187.528184
F124: =C124*'ORÇAMENTO ESTIMADO'!$G$10 -> 0
F125: =C125*'ORÇAMENTO ESTIMADO'!$G$10 -> 0
A126: 2. QUADRO-RESUMO DO CUSTO POR EMPREGADO | F126: =C126*'ORÇAMENTO ESTIMADO'!$G$10 -> 0
F127: =C127*'ORÇAMENTO ESTIMADO'!$G$10 -> 0
B128: Mão de obra vinculada à execução contratual (valor por empregado) | C128: Valor (R$) | F128: =C128*'ORÇAMENTO ESTIMADO'!$G$10 -> 
A129: A | B129: Módulo 1 - Composição da Remuneração | C129: =C16 -> 2302.14 | F129: =C129*'ORÇAMENTO ESTIMADO'!$G$10 -> 2302.14
A130: B | B130: Módulo 2 - Encargos e Benefícios Anuais, Mensais e Diários | C130: =C59 -> 2036.96046 | F130: =C130*'ORÇAMENTO ESTIMADO'!$G$10 -> 2036.96046
A131: C | B131: Módulo 3 - Provisão para Rescisão | C131: =C71 -> 279.5148614 | F131: =C131*'ORÇAMENTO ESTIMADO'!$G$10 -> 279.5148614
A132: D | B132: Módulo 4 - Custo de Reposição do Profissional Ausente | C132: =C101 -> 393.4012805 | F132: =C132*'ORÇAMENTO ESTIMADO'!$G$10 -> 393.4012805
A133: E | B133: Módulo 5 - Insumos Diversos | C133: =C111 -> 48.26472222 | F133: =C133*'ORÇAMENTO ESTIMADO'!$G$10 -> 48.26472222
A134: Subtotal (A + B +C+ D+E) | C134: =SUM(C129:C133) -> 5060.281324 | F134: =C134*'ORÇAMENTO ESTIMADO'!$G$10 -> 5060.281324
A135: F | B135: Módulo 6 – Custos Indiretos, Tributos e Lucro | C135: =D123 -> 1187.528184 | F135: =C135*'ORÇAMENTO ESTIMADO'!$G$10 -> 1187.528184
A136: Valor Total por Empregado | C136: =C134+C135 -> 6247.809508 | F136: =C136*'ORÇAMENTO ESTIMADO'!$G$10 -> 6247.809508

Sheet Zelador
A1: PLANILHA DE CUSTOS E FORMAÇÃO DE PREÇOS
A2: MODELO PARA A CONSOLIDAÇÃO E APRESENTAÇÃO DE PROPOSTAS
A3: Com ajustes após publicação da Lei n° 13.467, de 2017.
A6: Módulo 1 - Composição da Remuneração
A8: 1 | B8: Composição da Remuneração | C8: Valor (R$)
A9: A | B9: Salário-Base | C9: ='Custo por trabalhador'!B11 -> 2302.14 | F9: =C9*'ORÇAMENTO ESTIMADO'!$G$11 -> 2302.14
A10: B | B10: Adicional de Periculosidade | C10: ='Custo por trabalhador'!D69 -> 0 | F10: =C10*'ORÇAMENTO ESTIMADO'!$G$11 -> 0
A11: C | B11: Adicional de Insalubridade | C11: ='Custo por trabalhador'!D69 -> 0 | F11: =C11*'ORÇAMENTO ESTIMADO'!$G$11 -> 0
A12: D | B12: Adicional Noturno | C12: ='Custo por trabalhador'!E69 -> 0 | F12: =C12*'ORÇAMENTO ESTIMADO'!$G$11 -> 0
A13: E | B13: Adicional de Hora Noturna Reduzida | C13: ='Custo por trabalhador'!F69 -> 0 | F13: =C13*'ORÇAMENTO ESTIMADO'!$G$11 -> 0
F14: =C14*'ORÇAMENTO ESTIMADO'!$G$11 -> 0
A15: G | B15: Outros (especificar) | F15: =C15*'ORÇAMENTO ESTIMADO'!$G$11 -> 0
A16: Total | C16: =SUM(C9:C15) -> 2302.14 | F16: =C16*'ORÇAMENTO ESTIMADO'!$G$11 -> 2302.14
F17: =C17*'ORÇAMENTO ESTIMADO'!$G$11 -> 0
F18: =C18*'ORÇAMENTO ESTIMADO'!$G$11 -> 0
A19: Módulo 2 - Encargos e Benefícios Anuais, Mensais e Diários | F19: =C19*'ORÇAMENTO ESTIMADO'!$G$11 -> 0
F20: =C20*'ORÇAMENTO ESTIMADO'!$G$11 -> 0
A21: Submódulo 2.1 - 13º (décimo terceiro) Salário, Férias e Adicional de Férias | F21: =C21*'ORÇAMENTO ESTIMADO'!$G$11 -> 0
F22: =C22*'ORÇAMENTO ESTIMADO'!$G$11 -> 0
A23: 2.1 | B23: 13º (décimo terceiro) Salário, Férias e Adicional de Férias | C23: Valor (R$) | F23: =C23*'ORÇAMENTO ESTIMADO'!$G$11 -> 
A24: A | B24: 13º (décimo terceiro) Salário | C24: ='Custo por trabalhador'!D81 -> 191.845 | F24: =C24*'ORÇAMENTO ESTIMADO'!$G$11 -> 191.845
A25: B | B25: Férias e Adicional de Férias | C25: ='Custo por trabalhador'!C102+'Custo por trabalhador'!D103 -> 234.6569444 | F25: =C25*'ORÇAMENTO ESTIMADO'!$G$11 -> 234.6569444
A26: Total | C26: =SUM(C24:C25) -> 426.5019444 | F26: =C26*'ORÇAMENTO ESTIMADO'!$G$11 -> 426.5019444
F27: =C27*'ORÇAMENTO ESTIMADO'!$G$11 -> 0
F28: =C28*'ORÇAMENTO ESTIMADO'!$G$11 -> 0
A29: Submódulo 2.2 - Encargos Previdenciários (GPS), Fundo de Garantia por Tempo de Serviço (FGTS) e outras contribuições. | F29: =C29*'ORÇAMENTO ESTIMADO'!$G$11 -> 0
F30: =C30*'ORÇAMENTO ESTIMADO'!$G$11 -> 0
A31: 2.2 | B31: GPS, FGTS e outras contribuições | C31: Percentual (%) | D31: Valor (R$) | F31: =C31*'ORÇAMENTO ESTIMADO'!$G$11 -> 
A32: A | B32: INSS | C32: ='Custo por trabalhador'!B109 -> 0.2 | D32: =C32*'Custo por trabalhador'!B123 -> 549.9556667 | F32: =D32*'ORÇAMENTO ESTIMADO'!$G$11 -> 549.9556667
A33: B | B33: Salário Educação | C33: ='Custo por trabalhador'!B110 -> 0.025 | D33: =C33*'Custo por trabalhador'!B123 -> 68.74445833 | F33: =D33*'ORÇAMENTO ESTIMADO'!$G$11 -> 68.74445833
A34: C | B34: SAT | C34: ='Custo por trabalhador'!B111 -> 0.03 | D34: =C34*'Custo por trabalhador'!B123 -> 82.49335 | F34: =D34*'ORÇAMENTO ESTIMADO'!$G$11 -> 82.49335
A35: D | B35: SESC ou SESI | C35: ='Custo por trabalhador'!B112 -> 0.015 | D35: =C35*'Custo por trabalhador'!B123 -> 41.246675 | F35: =D35*'ORÇAMENTO ESTIMADO'!$G$11 -> 41.246675
A36: E | B36: SENAI - SENAC | C36: ='Custo por trabalhador'!B113 -> 0.01 | D36: =C36*'Custo por trabalhador'!B123 -> 27.49778333 | F36: =D36*'ORÇAMENTO ESTIMADO'!$G$11 -> 27.49778333
A37: F | B37: SEBRAE | C37: ='Custo por trabalhador'!B114 -> 0.006 | D37: =C37*'Custo por trabalhador'!B123 -> 16.49867 | F37: =D37*'ORÇAMENTO ESTIMADO'!$G$11 -> 16.49867
A38: G | B38: INCRA | C38: ='Custo por trabalhador'!B115 -> 0.002 | D38: =C38*'Custo por trabalhador'!B123 -> 5.499556667 | F38: =D38*'ORÇAMENTO ESTIMADO'!$G$11 -> 5.499556667
A39: H | B39: FGTS | C39: ='Custo por trabalhador'!B116 -> 0.08 | D39: ='Custo por trabalhador'!D130 -> 219.9822667 | F39: =D39*'ORÇAMENTO ESTIMADO'!$G$11 -> 219.9822667
A40: Total | D40: =SUM(D32:D39) -> 1011.918427 | F40: =D40*'ORÇAMENTO ESTIMADO'!$G$11 -> 1011.918427
F41: =C41*'ORÇAMENTO ESTIMADO'!$G$11 -> 0
F42: =C42*'ORÇAMENTO ESTIMADO'!$G$11 -> 0
A43: Submódulo 2.3 - Benefícios Mensais e Diários. | F43: =C43*'ORÇAMENTO ESTIMADO'!$G$11 -> 0
F44: =C44*'ORÇAMENTO ESTIMADO'!$G$11 -> 0
A45: 2.3 | B45: Benefícios Mensais e Diários | C45: Valor (R$) | F45: =C45*'ORÇAMENTO ESTIMADO'!$G$11 -> 
A46: A | B46: Transporte | C46: ='Custo por trabalhador'!D161 -> 48.8716 | F46: =C46*'ORÇAMENTO ESTIMADO'!$G$11 -> 48.8716
A47: B | B47: Auxílio-Refeição/Alimentação | C47: ='Custo por trabalhador'!D183 -> 479.424 | F47: =C47*'ORÇAMENTO ESTIMADO'!$G$11 -> 479.424
A48: C | B48: Assistência médica e familiar | C48: ='Custo por trabalhador'!D208 -> 47.15 | F48: =C48*'ORÇAMENTO ESTIMADO'!$G$11 -> 47.15
A49: D | B49: Seguro de vida, invalidez e funeral | C49: ='Custo por trabalhador'!E208 -> 1.9581 | F49: =C49*'ORÇAMENTO ESTIMADO'!$G$11 -> 1.9581
A50: Total | C50: =SUM(C46:C49) -> 577.4037 | F50: =C50*'ORÇAMENTO ESTIMADO'!$G$11 -> 577.4037
F51: =C51*'ORÇAMENTO ESTIMADO'!$G$11 -> 0
F52: =C52*'ORÇAMENTO ESTIMADO'!$G$11 -> 0
A53: Quadro-Resumo do Módulo 2 - Encargos e Benefícios anuais, mensais e diários | F53: =C53*'ORÇAMENTO ESTIMADO'!$G$11 -> 0
F54: =C54*'ORÇAMENTO ESTIMADO'!$G$11 -> 0
A55: 2 | B55: Encargos e Benefícios Anuais, Mensais e Diários | C55: Valor (R$) | F55: =C55*'ORÇAMENTO ESTIMADO'!$G$11 -> 
A56: 2.1 | B56: 13º (décimo terceiro) Salário, Férias e Adicional de Férias | C56: ='Custo por trabalhador'!B217 -> 447.6383333 | F56: =C56*'ORÇAMENTO ESTIMADO'!$G$11 -> 447.6383333
A57: 2.2 | B57: GPS, FGTS e outras contribuições | C57: ='Custo por trabalhador'!C217 -> 1011.918427 | F57: =C57*'ORÇAMENTO ESTIMADO'!$G$11 -> 1011.918427
A58: 2.3 | B58: Benefícios Mensais e Diários | C58: ='Custo por trabalhador'!D217 -> 577.4037 | F58: =C58*'ORÇAMENTO ESTIMADO'!$G$11 -> 577.4037
A59: Total | C59: =SUM(C56:C58) -> 2036.96046 | F59: =C59*'ORÇAMENTO ESTIMADO'!$G$11 -> 2036.96046
F60: =C60*'ORÇAMENTO ESTIMADO'!$G$11 -> 0
F61: =C61*'ORÇAMENTO ESTIMADO'!$G$11 -> 0
A62: Módulo 3 - Provisão para Rescisão | F62: =C62*'ORÇAMENTO ESTIMADO'!$G$11 -> 0
F63: =C63*'ORÇAMENTO ESTIMADO'!$G$11 -> 0
A64: 3 | B64: Provisão para Rescisão | C64: Valor (R$) | F64: =C64*'ORÇAMENTO ESTIMADO'!$G$11 -> 
A65: A | B65: Aviso Prévio Indenizado | C65: ='Custo por trabalhador'!D237*'Custo por trabalhador'!C251 -> 133.0186612 | F65: =C65*'ORÇAMENTO ESTIMADO'!$G$11 -> 133.0186612
A66: B | B66: Incidência do FGTS sobre o Aviso Prévio Indenizado | F66: =C66*'ORÇAMENTO ESTIMADO'!$G$11 -> 0
A67: C | B67: Multa do FGTS e contribuição social sobre o Aviso Prévio Indenizado | C67: ='Custo por trabalhador'!D244*'Custo por trabalhador'!C251 -> 39.596808 | F67: =C67*'ORÇAMENTO ESTIMADO'!$G$11 -> 39.596808
A68: D | B68: Aviso Prévio Trabalhado | C68: ='Custo por trabalhador'!D260*'Custo por trabalhador'!C274 -> 46.40426881 | F68: =C68*'ORÇAMENTO ESTIMADO'!$G$11 -> 46.40426881
A69: E | B69: Incidência dos encargos do submódulo 2.2 sobre o Aviso Prévio Trabalhado | F69: =C69*'ORÇAMENTO ESTIMADO'!$G$11 -> 0
A70: F | B70: Multa do FGTS e contribuição social sobre o Aviso Prévio Trabalhado | C70: ='Custo por trabalhador'!D267*'Custo por trabalhador'!C274 -> 60.49512333 | F70: =C70*'ORÇAMENTO ESTIMADO'!$G$11 -> 60.49512333
A71: Total | C71: =SUM(C65:C70) -> 279.5148614 | F71: =C71*'ORÇAMENTO ESTIMADO'!$G$11 -> 279.5148614
F72: =C72*'ORÇAMENTO ESTIMADO'!$G$11 -> 0
F73: =C73*'ORÇAMENTO ESTIMADO'!$G$11 -> 0
A74: Módulo 4 - Custo de Reposição do Profissional Ausente | F74: =C74*'ORÇAMENTO ESTIMADO'!$G$11 -> 0
F75: =C75*'ORÇAMENTO ESTIMADO'!$G$11 -> 0
F76: =C76*'ORÇAMENTO ESTIMADO'!$G$11 -> 0
A77: Submódulo 4.1 - Ausências Legais | F77: =C77*'ORÇAMENTO ESTIMADO'!$G$11 -> 0
F78: =C78*'ORÇAMENTO ESTIMADO'!$G$11 -> 0
A79: 4.1 | B79: Ausências Legais | C79: Valor (R$) | F79: =C79*'ORÇAMENTO ESTIMADO'!$G$11 -> 
A80: A | B80: Férias | F80: =C80*'ORÇAMENTO ESTIMADO'!$G$11 -> 0
A81: B | B81: Ausências Legais | C81: ='Custo por trabalhador'!E351 -> 393.4012805 | F81: =C81*'ORÇAMENTO ESTIMADO'!$G$11 -> 393.4012805
A82: C | B82: Licença-Paternidade | F82: =C82*'ORÇAMENTO ESTIMADO'!$G$11 -> 0
A83: D | B83: Ausência por acidente de trabalho | F83: =C83*'ORÇAMENTO ESTIMADO'!$G$11 -> 0
A84: E | B84: Afastamento Maternidade | F84: =C84*'ORÇAMENTO ESTIMADO'!$G$11 -> 0
A85: F | B85: Outros (especificar) | F85: =C85*'ORÇAMENTO ESTIMADO'!$G$11 -> 0
A86: Total | C86: =SUM(C81:C85) -> 393.4012805 | F86: =C86*'ORÇAMENTO ESTIMADO'!$G$11 -> 393.4012805
F87: =C87*'ORÇAMENTO ESTIMADO'!$G$11 -> 0
F88: =C88*'ORÇAMENTO ESTIMADO'!$G$11 -> 0
A89: Submódulo 4.2 - Intrajornada | F89: =C89*'ORÇAMENTO ESTIMADO'!$G$11 -> 0
F90: =C90*'ORÇAMENTO ESTIMADO'!$G$11 -> 0
A91: 4.2 | B91: Intrajornada | C91: Valor (R$) | F91: =C91*'ORÇAMENTO ESTIMADO'!$G$11 -> 
A92: A | B92: Intervalo para repouso e alimentação | C92: 0 | F92: =C92*'ORÇAMENTO ESTIMADO'!$G$11 -> 0
A93: Total | C93: =C92 -> 0 | F93: =C93*'ORÇAMENTO ESTIMADO'!$G$11 -> 0
F94: =C94*'ORÇAMENTO ESTIMADO'!$G$11 -> 0
F95: =C95*'ORÇAMENTO ESTIMADO'!$G$11 -> 0
A96: Quadro-Resumo do Módulo 4 - Custo de Reposição do Profissional Ausente | F96: =C96*'ORÇAMENTO ESTIMADO'!$G$11 -> 0
F97: =C97*'ORÇAMENTO ESTIMADO'!$G$11 -> 0
A98: 4 | B98: Custo de Reposição do Profissional Ausente | C98: Valor (R$) | F98: =C98*'ORÇAMENTO ESTIMADO'!$G$11 -> 
A99: 4.1 | B99: Ausências Legais | C99: =C86 -> 393.4012805 | F99: =C99*'ORÇAMENTO ESTIMADO'!$G$11 -> 393.4012805
A100: 4.2 | B100: Intrajornada | C100: =C93 -> 0 | F100: =C100*'ORÇAMENTO ESTIMADO'!$G$11 -> 0
A101: Total | C101: =SUM(C99:C100) -> 393.4012805 | F101: =C101*'ORÇAMENTO ESTIMADO'!$G$11 -> 393.4012805
F102: =C102*'ORÇAMENTO ESTIMADO'!$G$11 -> 0
F103: =C103*'ORÇAMENTO ESTIMADO'!$G$11 -> 0
A104: Módulo 5 - Insumos Diversos | F104: =C104*'ORÇAMENTO ESTIMADO'!$G$11 -> 0
F105: =C105*'ORÇAMENTO ESTIMADO'!$G$11 -> 0
A106: 5 | B106: Insumos Diversos | C106: Valor (R$) | F106: =C106*'ORÇAMENTO ESTIMADO'!$G$11 -> 
A107: A | B107: Uniformes | C107: ='Custo por trabalhador'!B475 -> 48.26472222 | F107: =C107*'ORÇAMENTO ESTIMADO'!$G$11 -> 48.26472222
A108: B | B108: Materiais | C108: ='Custo por trabalhador'!D475 -> 0 | F108: =C108*'ORÇAMENTO ESTIMADO'!$G$11 -> 0
A109: C | B109: Equipamentos | C109: ='Custo por trabalhador'!C475 -> 9.737155093 | F109: =C109*'ORÇAMENTO ESTIMADO'!$G$11 -> 9.737155093
A110: D | B110: Outros (especificar) | F110: =C110*'ORÇAMENTO ESTIMADO'!$G$11 -> 0
A111: Total | C111: =SUM(C107:C110) -> 58.00187731 | F111: =C111*'ORÇAMENTO ESTIMADO'!$G$11 -> 58.00187731
F112: =C112*'ORÇAMENTO ESTIMADO'!$G$11 -> 0
F113: =C113*'ORÇAMENTO ESTIMADO'!$G$11 -> 0
A114: Módulo 6 - Custos Indiretos, Tributos e Lucro | F114: =C114*'ORÇAMENTO ESTIMADO'!$G$11 -> 0
F115: =C115*'ORÇAMENTO ESTIMADO'!$G$11 -> 0
A116: 6 | B116: Custos Indiretos, Tributos e Lucro | C116: Percentual (%) | D116: Valor (R$) | F116: =C116*'ORÇAMENTO ESTIMADO'!$G$11 -> 
A117: A | B117: Custos Indiretos | C117: ='Custo por trabalhador'!B481 -> 0.03 | D117: =C117*C134 -> 152.1005544 | F117: =D117*'ORÇAMENTO ESTIMADO'!$G$11 -> 152.1005544
A118: B | B118: Lucro | C118: ='Custo por trabalhador'!B483 -> 0.0679 | D118: =(C134+D117)*C118 -> 354.5818824 | F118: =D118*'ORÇAMENTO ESTIMADO'!$G$11 -> 354.5818824
A119: C | B119: Tributos | C119: =SUM(C120:C122) -> 0.1225 | D119: =((C134+D117+D118)/1-C119)*C119 -> 683.130856 | F119: =D119*'ORÇAMENTO ESTIMADO'!$G$11 -> 683.130856
B120: C.1. Tributos Federais (especificar) | C120: 0.0925 | F120: =D120*'ORÇAMENTO ESTIMADO'!$G$11 -> 0
B121: C.2. Tributos Estaduais (especificar) | F121: =D121*'ORÇAMENTO ESTIMADO'!$G$11 -> 0
B122: C.3. Tributos Municipais (especificar) | C122: 0.03 | F122: =D122*'ORÇAMENTO ESTIMADO'!$G$11 -> 0
A123: Total | D123: =SUM(D117:D119) -> 1189.813293 | F123: =D123*'ORÇAMENTO ESTIMADO'!$G$11 -> 1189.813293
F124: =C124*'ORÇAMENTO ESTIMADO'!$G$11 -> 0
F125: =C125*'ORÇAMENTO ESTIMADO'!$G$11 -> 0
A126: 2. QUADRO-RESUMO DO CUSTO POR EMPREGADO | F126: =C126*'ORÇAMENTO ESTIMADO'!$G$11 -> 0
F127: =C127*'ORÇAMENTO ESTIMADO'!$G$11 -> 0
B128: Mão de obra vinculada à execução contratual (valor por empregado) | C128: Valor (R$) | F128: =C128*'ORÇAMENTO ESTIMADO'!$G$11 -> 
A129: A | B129: Módulo 1 - Composição da Remuneração | C129: =C16 -> 2302.14 | F129: =C129*'ORÇAMENTO ESTIMADO'!$G$11 -> 2302.14
A130: B | B130: Módulo 2 - Encargos e Benefícios Anuais, Mensais e Diários | C130: =C59 -> 2036.96046 | F130: =C130*'ORÇAMENTO ESTIMADO'!$G$11 -> 2036.96046
A131: C | B131: Módulo 3 - Provisão para Rescisão | C131: =C71 -> 279.5148614 | F131: =C131*'ORÇAMENTO ESTIMADO'!$G$11 -> 279.5148614
A132: D | B132: Módulo 4 - Custo de Reposição do Profissional Ausente | C132: =C101 -> 393.4012805 | F132: =C132*'ORÇAMENTO ESTIMADO'!$G$11 -> 393.4012805
A133: E | B133: Módulo 5 - Insumos Diversos | C133: =C111 -> 58.00187731 | F133: =C133*'ORÇAMENTO ESTIMADO'!$G$11 -> 58.00187731
A134: Subtotal (A + B +C+ D+E) | C134: =SUM(C129:C133) -> 5070.018479 | F134: =C134*'ORÇAMENTO ESTIMADO'!$G$11 -> 5070.018479
A135: F | B135: Módulo 6 – Custos Indiretos, Tributos e Lucro | C135: =D123 -> 1189.813293 | F135: =C135*'ORÇAMENTO ESTIMADO'!$G$11 -> 1189.813293
A136: Valor Total por Empregado | C136: =C134+C135 -> 6259.831772 | F136: =C136*'ORÇAMENTO ESTIMADO'!$G$11 -> 6259.831772
C140: Valor do posto zelador: | D140: =C136 -> 6259.831772
C142: Valor dia: | D142: =+C136/31 -> 201.9300572
C143: Dias trabalhados: | D143: 26
C144: Valor a pagar: | D144: =+D142*D143 -> 5250.181486
C146: Valor a descontar: | D146: =-D144+C136 -> 1009.650286

Sheet Copeira
A1: PLANILHA DE CUSTOS E FORMAÇÃO DE PREÇOS
A2: MODELO PARA A CONSOLIDAÇÃO E APRESENTAÇÃO DE PROPOSTAS
A3: Com ajustes após publicação da Lei n° 13.467, de 2017.
A6: Módulo 1 - Composição da Remuneração
A8: 1 | B8: Composição da Remuneração | C8: Valor (R$)
A9: A | B9: Salário-Base | C9: ='Custo por trabalhador'!B12 -> 1541.23 | F9: =C9*'ORÇAMENTO ESTIMADO'!$G$12 -> 1541.23
A10: B | B10: Adicional de Periculosidade | C10: ='Custo por trabalhador'!D69 -> 0 | F10: =C10*'ORÇAMENTO ESTIMADO'!$G$12 -> 0
A11: C | B11: Adicional de Insalubridade | C11: ='Custo por trabalhador'!D69 -> 0 | F11: =C11*'ORÇAMENTO ESTIMADO'!$G$12 -> 0
A12: D | B12: Adicional Noturno | C12: ='Custo por trabalhador'!E69 -> 0 | F12: =C12*'ORÇAMENTO ESTIMADO'!$G$12 -> 0
A13: E | B13: Adicional de Hora Noturna Reduzida | C13: ='Custo por trabalhador'!F69 -> 0 | F13: =C13*'ORÇAMENTO ESTIMADO'!$G$12 -> 0
F14: =C14*'ORÇAMENTO ESTIMADO'!$G$12 -> 0
A15: G | B15: Outros (especificar) | F15: =C15*'ORÇAMENTO ESTIMADO'!$G$12 -> 0
A16: Total | C16: =SUM(C9:C15) -> 1541.23 | F16: =C16*'ORÇAMENTO ESTIMADO'!$G$12 -> 1541.23
F17: =C17*'ORÇAMENTO ESTIMADO'!$G$12 -> 0
F18: =C18*'ORÇAMENTO ESTIMADO'!$G$12 -> 0
A19: Módulo 2 - Encargos e Benefícios Anuais, Mensais e Diários | F19: =C19*'ORÇAMENTO ESTIMADO'!$G$12 -> 0
F20: =C20*'ORÇAMENTO ESTIMADO'!$G$12 -> 0
A21: Submódulo 2.1 - 13º (décimo terceiro) Salário, Férias e Adicional de Férias | F21: =C21*'ORÇAMENTO ESTIMADO'!$G$12 -> 0
F22: =C22*'ORÇAMENTO ESTIMADO'!$G$12 -> 0
A23: 2.1 | B23: 13º (décimo terceiro) Salário, Férias e Adicional de Férias | C23: Valor (R$) | F23: =C23*'ORÇAMENTO ESTIMADO'!$G$12 -> 
A24: A | B24: 13º (décimo terceiro) Salário | C24: ='Custo por trabalhador'!D82 -> 128.4358333 | F24: =C24*'ORÇAMENTO ESTIMADO'!$G$12 -> 128.4358333
A25: B | B25: Férias e Adicional de Férias | C25: ='Custo por trabalhador'!C103+'Custo por trabalhador'!D104 -> 128.4358333 | F25: =C25*'ORÇAMENTO ESTIMADO'!$G$12 -> 128.4358333
A26: Total | C26: =SUM(C24:C25) -> 256.8716667 | F26: =C26*'ORÇAMENTO ESTIMADO'!$G$12 -> 256.8716667
F27: =C27*'ORÇAMENTO ESTIMADO'!$G$12 -> 0
F28: =C28*'ORÇAMENTO ESTIMADO'!$G$12 -> 0
A29: Submódulo 2.2 - Encargos Previdenciários (GPS), Fundo de Garantia por Tempo de Serviço (FGTS) e outras contribuições. | F29: =C29*'ORÇAMENTO ESTIMADO'!$G$12 -> 0
F30: =C30*'ORÇAMENTO ESTIMADO'!$G$12 -> 0
A31: 2.2 | B31: GPS, FGTS e outras contribuições | C31: Percentual (%) | D31: Valor (R$) | F31: =C31*'ORÇAMENTO ESTIMADO'!$G$12 -> 
A32: A | B32: INSS | C32: ='Custo por trabalhador'!B109 -> 0.2 | D32: =C32*'Custo por trabalhador'!B124 -> 368.1827222 | F32: =D32*'ORÇAMENTO ESTIMADO'!$G$12 -> 368.1827222
A33: B | B33: Salário Educação | C33: ='Custo por trabalhador'!B110 -> 0.025 | D33: =C33*'Custo por trabalhador'!B124 -> 46.02284028 | F33: =D33*'ORÇAMENTO ESTIMADO'!$G$12 -> 46.02284028
A34: C | B34: SAT | C34: ='Custo por trabalhador'!B111 -> 0.03 | D34: =C34*'Custo por trabalhador'!B124 -> 55.22740833 | F34: =D34*'ORÇAMENTO ESTIMADO'!$G$12 -> 55.22740833
A35: D | B35: SESC ou SESI | C35: ='Custo por trabalhador'!B112 -> 0.015 | D35: =C35*'Custo por trabalhador'!B124 -> 27.61370417 | F35: =D35*'ORÇAMENTO ESTIMADO'!$G$12 -> 27.61370417
A36: E | B36: SENAI - SENAC | C36: ='Custo por trabalhador'!B113 -> 0.01 | D36: =C36*'Custo por trabalhador'!B124 -> 18.40913611 | F36: =D36*'ORÇAMENTO ESTIMADO'!$G$12 -> 18.40913611
A37: F | B37: SEBRAE | C37: ='Custo por trabalhador'!B114 -> 0.006 | D37: =C37*'Custo por trabalhador'!B124 -> 11.04548167 | F37: =D37*'ORÇAMENTO ESTIMADO'!$G$12 -> 11.04548167
A38: G | B38: INCRA | C38: ='Custo por trabalhador'!B115 -> 0.002 | D38: =C38*'Custo por trabalhador'!B124 -> 3.681827222 | F38: =D38*'ORÇAMENTO ESTIMADO'!$G$12 -> 3.681827222
A39: H | B39: FGTS | C39: ='Custo por trabalhador'!B116 -> 0.08 | D39: ='Custo por trabalhador'!D131 -> 147.2730889 | F39: =D39*'ORÇAMENTO ESTIMADO'!$G$12 -> 147.2730889
A40: Total | D40: =SUM(D32:D39) -> 677.4562089 | F40: =D40*'ORÇAMENTO ESTIMADO'!$G$12 -> 677.4562089
F41: =C41*'ORÇAMENTO ESTIMADO'!$G$12 -> 0
F42: =C42*'ORÇAMENTO ESTIMADO'!$G$12 -> 0
A43: Submódulo 2.3 - Benefícios Mensais e Diários. | F43: =C43*'ORÇAMENTO ESTIMADO'!$G$12 -> 0
F44: =C44*'ORÇAMENTO ESTIMADO'!$G$12 -> 0
A45: 2.3 | B45: Benefícios Mensais e Diários | C45: Valor (R$) | F45: =C45*'ORÇAMENTO ESTIMADO'!$G$12 -> 
A46: A | B46: Transporte | C46: ='Custo por trabalhador'!D162 -> 94.5262 | F46: =C46*'ORÇAMENTO ESTIMADO'!$G$12 -> 94.5262
A47: B | B47: Auxílio-Refeição/Alimentação | C47: ='Custo por trabalhador'!D184 -> 479.424 | F47: =C47*'ORÇAMENTO ESTIMADO'!$G$12 -> 479.424
A48: C | B48: Assistência médica e familiar | C48: ='Custo por trabalhador'!D209 -> 47.15 | F48: =C48*'ORÇAMENTO ESTIMADO'!$G$12 -> 47.15
A49: D | B49: Seguro de vida, invalidez e funeral | C49: ='Custo por trabalhador'!E209 -> 1.9581 | F49: =C49*'ORÇAMENTO ESTIMADO'!$G$12 -> 1.9581
A50: Total | C50: =SUM(C46:C49) -> 623.0583 | F50: =C50*'ORÇAMENTO ESTIMADO'!$G$12 -> 623.0583
F51: =C51*'ORÇAMENTO ESTIMADO'!$G$12 -> 0
F52: =C52*'ORÇAMENTO ESTIMADO'!$G$12 -> 0
A53: Quadro-Resumo do Módulo 2 - Encargos e Benefícios anuais, mensais e diários | F53: =C53*'ORÇAMENTO ESTIMADO'!$G$12 -> 0
F54: =C54*'ORÇAMENTO ESTIMADO'!$G$12 -> 0
A55: 2 | B55: Encargos e Benefícios Anuais, Mensais e Diários | C55: Valor (R$) | F55: =C55*'ORÇAMENTO ESTIMADO'!$G$12 -> 
A56: 2.1 | B56: 13º (décimo terceiro) Salário, Férias e Adicional de Férias | C56: ='Custo por trabalhador'!B218 -> 299.6836111 | F56: =C56*'ORÇAMENTO ESTIMADO'!$G$12 -> 299.6836111
A57: 2.2 | B57: GPS, FGTS e outras contribuições | C57: ='Custo por trabalhador'!C218 -> 677.4562089 | F57: =C57*'ORÇAMENTO ESTIMADO'!$G$12 -> 677.4562089
A58: 2.3 | B58: Benefícios Mensais e Diários | C58: ='Custo por trabalhador'!D218 -> 623.0583 | F58: =C58*'ORÇAMENTO ESTIMADO'!$G$12 -> 623.0583
A59: Total | C59: =SUM(C56:C58) -> 1600.19812 | F59: =C59*'ORÇAMENTO ESTIMADO'!$G$12 -> 1600.19812
F60: =C60*'ORÇAMENTO ESTIMADO'!$G$12 -> 0
F61: =C61*'ORÇAMENTO ESTIMADO'!$G$12 -> 0
A62: Módulo 3 - Provisão para Rescisão | F62: =C62*'ORÇAMENTO ESTIMADO'!$G$12 -> 0
F63: =C63*'ORÇAMENTO ESTIMADO'!$G$12 -> 0
A64: 3 | B64: Provisão para Rescisão | C64: Valor (R$) | F64: =C64*'ORÇAMENTO ESTIMADO'!$G$12 -> 
A65: A | B65: Aviso Prévio Indenizado | C65: ='Custo por trabalhador'!D238*'Custo por trabalhador'!C252 -> 97.9216875 | F65: =C65*'ORÇAMENTO ESTIMADO'!$G$12 -> 97.9216875
A66: B | B66: Incidência do FGTS sobre o Aviso Prévio Indenizado | F66: =C66*'ORÇAMENTO ESTIMADO'!$G$12 -> 0
A67: C | B67: Multa do FGTS e contribuição social sobre o Aviso Prévio Indenizado | C67: ='Custo por trabalhador'!D245*'Custo por trabalhador'!C252 -> 26.509156 | F67: =C67*'ORÇAMENTO ESTIMADO'!$G$12 -> 26.509156
A68: D | B68: Aviso Prévio Trabalhado | C68: ='Custo por trabalhador'!D261*'Custo por trabalhador'!C275 -> 33.59582851 | F68: =C68*'ORÇAMENTO ESTIMADO'!$G$12 -> 33.59582851
A69: E | B69: Incidência dos encargos do submódulo 2.2 sobre o Aviso Prévio Trabalhado | F69: =C69*'ORÇAMENTO ESTIMADO'!$G$12 -> 0
A70: F | B70: Multa do FGTS e contribuição social sobre o Aviso Prévio Trabalhado | C70: ='Custo por trabalhador'!D268*'Custo por trabalhador'!C275 -> 40.50009944 | F70: =C70*'ORÇAMENTO ESTIMADO'!$G$12 -> 40.50009944
A71: Total | C71: =SUM(C65:C70) -> 198.5267715 | F71: =C71*'ORÇAMENTO ESTIMADO'!$G$12 -> 198.5267715
F72: =C72*'ORÇAMENTO ESTIMADO'!$G$12 -> 0
F73: =C73*'ORÇAMENTO ESTIMADO'!$G$12 -> 0
A74: Módulo 4 - Custo de Reposição do Profissional Ausente | F74: =C74*'ORÇAMENTO ESTIMADO'!$G$12 -> 0
F75: =C75*'ORÇAMENTO ESTIMADO'!$G$12 -> 0
F76: =C76*'ORÇAMENTO ESTIMADO'!$G$12 -> 0
A77: Submódulo 4.1 - Ausências Legais | F77: =C77*'ORÇAMENTO ESTIMADO'!$G$12 -> 0
F78: =C78*'ORÇAMENTO ESTIMADO'!$G$12 -> 0
A79: 4.1 | B79: Ausências Legais | C79: Valor (R$) | F79: =C79*'ORÇAMENTO ESTIMADO'!$G$12 -> 
A80: A | B80: Férias | F80: =C80*'ORÇAMENTO ESTIMADO'!$G$12 -> 0
A81: B | B81: Ausências Legais | C81: ='Custo por trabalhador'!E352 -> 284.4884104 | F81: =C81*'ORÇAMENTO ESTIMADO'!$G$12 -> 284.4884104
A82: C | B82: Licença-Paternidade | F82: =C82*'ORÇAMENTO ESTIMADO'!$G$12 -> 0
A83: D | B83: Ausência por acidente de trabalho | F83: =C83*'ORÇAMENTO ESTIMADO'!$G$12 -> 0
A84: E | B84: Afastamento Maternidade | F84: =C84*'ORÇAMENTO ESTIMADO'!$G$12 -> 0
A85: F | B85: Outros (especificar) | F85: =C85*'ORÇAMENTO ESTIMADO'!$G$12 -> 0
A86: Total | C86: =SUM(C81:C85) -> 284.4884104 | F86: =C86*'ORÇAMENTO ESTIMADO'!$G$12 -> 284.4884104
F87: =C87*'ORÇAMENTO ESTIMADO'!$G$12 -> 0
F88: =C88*'ORÇAMENTO ESTIMADO'!$G$12 -> 0
A89: Submódulo 4.2 - Intrajornada | F89: =C89*'ORÇAMENTO ESTIMADO'!$G$12 -> 0
F90: =C90*'ORÇAMENTO ESTIMADO'!$G$12 -> 0
A91: 4.2 | B91: Intrajornada | C91: Valor (R$) | F91: =C91*'ORÇAMENTO ESTIMADO'!$G$12 -> 
A92: A | B92: Intervalo para repouso e alimentação | C92: 0 | F92: =C92*'ORÇAMENTO ESTIMADO'!$G$12 -> 0
A93: Total | C93: =C92 -> 0 | F93: =C93*'ORÇAMENTO ESTIMADO'!$G$12 -> 0
F94: =C94*'ORÇAMENTO ESTIMADO'!$G$12 -> 0
F95: =C95*'ORÇAMENTO ESTIMADO'!$G$12 -> 0
A96: Quadro-Resumo do Módulo 4 - Custo de Reposição do Profissional Ausente | F96: =C96*'ORÇAMENTO ESTIMADO'!$G$12 -> 0
F97: =C97*'ORÇAMENTO ESTIMADO'!$G$12 -> 0
A98: 4 | B98: Custo de Reposição do Profissional Ausente | C98: Valor (R$) | F98: =C98*'ORÇAMENTO ESTIMADO'!$G$12 -> 
A99: 4.1 | B99: Ausências Legais | C99: =C86 -> 284.4884104 | F99: =C99*'ORÇAMENTO ESTIMADO'!$G$12 -> 284.4884104
A100: 4.2 | B100: Intrajornada | C100: =C93 -> 0 | F100: =C100*'ORÇAMENTO ESTIMADO'!$G$12 -> 0
A101: Total | C101: =SUM(C99:C100) -> 284.4884104 | F101: =C101*'ORÇAMENTO ESTIMADO'!$G$12 -> 284.4884104
F102: =C102*'ORÇAMENTO ESTIMADO'!$G$12 -> 0
F103: =C103*'ORÇAMENTO ESTIMADO'!$G$12 -> 0
A104: Módulo 5 - Insumos Diversos | F104: =C104*'ORÇAMENTO ESTIMADO'!$G$12 -> 0
F105: =C105*'ORÇAMENTO ESTIMADO'!$G$12 -> 0
A106: 5 | B106: Insumos Diversos | C106: Valor (R$) | F106: =C106*'ORÇAMENTO ESTIMADO'!$G$12 -> 
A107: A | B107: Uniformes | C107: ='Custo por trabalhador'!B476 -> 48.26472222 | F107: =C107*'ORÇAMENTO ESTIMADO'!$G$12 -> 48.26472222
A108: B | B108: Materiais | C108: ='Custo por trabalhador'!D476 -> 0 | F108: =C108*'ORÇAMENTO ESTIMADO'!$G$12 -> 0
A109: C | B109: Equipamentos | C109: ='Custo por trabalhador'!C476 -> 0 | F109: =C109*'ORÇAMENTO ESTIMADO'!$G$12 -> 0
A110: D | B110: Outros (especificar) | F110: =C110*'ORÇAMENTO ESTIMADO'!$G$12 -> 0
A111: Total | C111: =SUM(C107:C110) -> 48.26472222 | F111: =C111*'ORÇAMENTO ESTIMADO'!$G$12 -> 48.26472222
F112: =C112*'ORÇAMENTO ESTIMADO'!$G$12 -> 0
F113: =C113*'ORÇAMENTO ESTIMADO'!$G$12 -> 0
A114: Módulo 6 - Custos Indiretos, Tributos e Lucro | F114: =C114*'ORÇAMENTO ESTIMADO'!$G$12 -> 0
F115: =C115*'ORÇAMENTO ESTIMADO'!$G$12 -> 0
A116: 6 | B116: Custos Indiretos, Tributos e Lucro | C116: Percentual (%) | D116: Valor (R$) | F116: =C116*'ORÇAMENTO ESTIMADO'!$G$12 -> 
A117: A | B117: Custos Indiretos | C117: ='Custo por trabalhador'!B481 -> 0.03 | D117: =C117*C134 -> 110.1812407 | F117: =D117*'ORÇAMENTO ESTIMADO'!$G$12 -> 110.1812407
A118: B | B118: Lucro | C118: ='Custo por trabalhador'!B483 -> 0.0679 | D118: =(C134+D117)*C118 -> 256.8581811 | F118: =D118*'ORÇAMENTO ESTIMADO'!$G$12 -> 256.8581811
A119: C | B119: Tributos | C119: =SUM(C120:C122) -> 0.1225 | D119: =((C134+D117+D118)/1-C119)*C119 -> 494.8540559 | F119: =D119*'ORÇAMENTO ESTIMADO'!$G$12 -> 494.8540559
B120: C.1. Tributos Federais (especificar) | C120: 0.0925 | F120: =D120*'ORÇAMENTO ESTIMADO'!$G$12 -> 0
B121: C.2. Tributos Estaduais (especificar) | F121: =D121*'ORÇAMENTO ESTIMADO'!$G$12 -> 0
B122: C.3. Tributos Municipais (especificar) | C122: 0.03 | F122: =D122*'ORÇAMENTO ESTIMADO'!$G$12 -> 0
A123: Total | D123: =SUM(D117:D119) -> 861.8934777 | F123: =D123*'ORÇAMENTO ESTIMADO'!$G$12 -> 861.8934777
F124: =C124*'ORÇAMENTO ESTIMADO'!$G$12 -> 0
F125: =C125*'ORÇAMENTO ESTIMADO'!$G$12 -> 0
A126: 2. QUADRO-RESUMO DO CUSTO POR EMPREGADO | F126: =C126*'ORÇAMENTO ESTIMADO'!$G$12 -> 0
F127: =C127*'ORÇAMENTO ESTIMADO'!$G$12 -> 0
B128: Mão de obra vinculada à execução contratual (valor por empregado) | C128: Valor (R$) | F128: =C128*'ORÇAMENTO ESTIMADO'!$G$12 -> 
A129: A | B129: Módulo 1 - Composição da Remuneração | C129: =C16 -> 1541.23 | F129: =C129*'ORÇAMENTO ESTIMADO'!$G$12 -> 1541.23
A130: B | B130: Módulo 2 - Encargos e Benefícios Anuais, Mensais e Diários | C130: =C59 -> 1600.19812 | F130: =C130*'ORÇAMENTO ESTIMADO'!$G$12 -> 1600.19812
A131: C | B131: Módulo 3 - Provisão para Rescisão | C131: =C71 -> 198.5267715 | F131: =C131*'ORÇAMENTO ESTIMADO'!$G$12 -> 198.5267715
A132: D | B132: Módulo 4 - Custo de Reposição do Profissional Ausente | C132: =C101 -> 284.4884104 | F132: =C132*'ORÇAMENTO ESTIMADO'!$G$12 -> 284.4884104
A133: E | B133: Módulo 5 - Insumos Diversos | C133: =C111 -> 48.26472222 | F133: =C133*'ORÇAMENTO ESTIMADO'!$G$12 -> 48.26472222
A134: Subtotal (A + B +C+ D+E) | C134: =SUM(C129:C133) -> 3672.708024 | F134: =C134*'ORÇAMENTO ESTIMADO'!$G$12 -> 3672.708024
A135: F | B135: Módulo 6 – Custos Indiretos, Tributos e Lucro | C135: =D123 -> 861.8934777 | F135: =C135*'ORÇAMENTO ESTIMADO'!$G$12 -> 861.8934777
A136: Valor Total por Empregado | C136: =C134+C135 -> 4534.601502 | F136: =C136*'ORÇAMENTO ESTIMADO'!$G$12 -> 4534.601502

Sheet ORÇAMENTO ESTIMADO
C2: ANEXO IX - PLANILHA VALOR GLOBAL DA PROPOSTA
B3: Quadro-resumo – VALOR MENSAL DOS SERVIÇOS
D5: Valor proposto por empregado | E5: Qtde de empregados por posto | F5: Valor proposto por posto | G5: Qtde | H5: Valor total do serviço
B6: Tipo de serviço | D6: (B) | E6: (C) | F6: (D) = (B x C) | G6: de postos
G7: (E) | H7: (F) = (D x E)
B8: (A)
B9: I | C9: SERVENTE DE LIMPEZA 8H | D9: ='Servente 8h'!C136 -> 5282.171144 | E9: 1 | F9: =D9*E9 -> 5282.171144 | G9: =+'Custo por trabalhador'!B513 -> 9 | H9: =F9*G9 -> 47539.5403
B10: II | C10: ENCARREGADO | D10: =Encarregado!C136 -> 6247.809508 | E10: 1 | F10: =D10*E10 -> 6247.809508 | G10: =+'Custo por trabalhador'!C513 -> 1 | H10: =F10*G10 -> 6247.809508
B11: III | C11: ZELADOR | D11: =Zelador!C136 -> 6259.831772 | E11: 1 | F11: =D11*E11 -> 6259.831772 | G11: =+'Custo por trabalhador'!D513 -> 1 | H11: =F11*G11 -> 6259.831772
B12: IV | C12: COPEIRA | D12: =Copeira!C136 -> 4534.601502 | E12: 1 | F12: 4534.601502 | G12: =+'Custo por trabalhador'!E513 -> 1 | H12: 4534.601502
B13: VALOR MENSAL DOS SERVIÇOS (I + II + III + IV + V.) | H13: =SUM(H9:H12) -> 64581.78308
B16: Quadro - demonstrativo - VALOR GLOBAL DA PROPOSTA
B19: Valor Global da Proposta
C20: Descrição | F20: Valor (R$)
B21: A | C21: Valor mensal do serviço | F21: =H13 -> 64581.78308
B22: B | C22: Valor global da proposta | F22: =F21*12 -> 774981.3969
C23: (valor mensal do serviço X nº meses do contrato).
B25: Nota (1): Informar o valor da unidade de medida por tipo de serviço.

Sheet Metro MOC
A3: VALORES DE ACORDO COM A CCT 2024
K5: =1/12 -> 0.08333333333
A6: 1 - PREÇO MENSAL UNITÁRIO POR M² (SERVENTE E ENCARREGADO) - MONTES CLAROS
A8: ÁREA INTERNA (PRODUTIVIDADE 850 M²/DIÁRIA)
A9: MÃO-DE-OBRA | B9: (1) PRODUTIVIDADE (1/M²) | E9: (2) PREÇO HOMEM-MÊS (R$) | H9: (1 X 2) SUB-TOTAL (R$/M²)
A10: ENCARREGADO | B10: 1 / (11 X 850) | E10: ='Custo por trabalhador'!C515 -> 6247.809508 | H10: =(1/(11*850)*E10) -> 0.6682149207
A11: SERVENTE 8H | B11: 1 / 850 | E11: ='Custo por trabalhador'!B512 -> 5282.171144 | H11: =(1/850)*E11 -> 6.214318993
F12: TOTAL: | H12: =SUM(H10:I11) -> 6.882533914
A15: ÁREA EXTERNA (PRODUTIVIDADE 2000 M²/DIÁRIA)
A16: MÃO-DE-OBRA | B16: (1) PRODUTIVIDADE (1/M²) | E16: (2) PREÇO HOMEM-MÊS (R$) | H16: (1 X 2) SUB-TOTAL (R$/M²)
A17: ENCARREGADO | B17: 1 / (11 X 2000) | E17: =E10 -> 6247.809508 | H17: =(1/(11*2000)*E17) -> 0.2839913413
A18: SERVENTE 8H | B18: 1 / 2.000 | E18: =E11 -> 5282.171144 | H18: =(1/2000)*E18 -> 2.641085572
F19: TOTAL: | H19: =SUM(H17:I18) -> 2.925076913
A21: Zelador (PRODUTIVIDADE 8.764 M²/DIÁRIA)
A22: MÃO-DE-OBRA | B22: (1) PRODUTIVIDADE (1/M²) | E22: (2) PREÇO HOMEM-MÊS (R$) | H22: (1 X 2) SUB-TOTAL (R$/M²)
A23: ENCARREGADO | B23: 1 / (11 X 8764) | E23: =E10 -> 6247.809508 | H23: =(1/(11*8764)*E23) -> 0.0648086128
A24: ZELADOR | B24: 1 / 8.764 | E24: ='Custo por trabalhador'!D512 -> 6259.831772 | H24: =(1/8764)*E24 -> 0.7142665189
F25: TOTAL: | H25: =SUM(H23:H24) -> 0.7790751317
A27: COPEIRAGEM (PRODUTIVIDADE 2.960 M²/DIÁRIA)
A28: MÃO-DE-OBRA | B28: (1) PRODUTIVIDADE (1/M²) | E28: (2) PREÇO HOMEM-MÊS (R$) | H28: (1 X 2) SUB-TOTAL (R$/M²)
A29: ENCARREGADO | B29: 1 / (11 X 2960) | E29: =E17 -> 6247.809508 | H29: =(1/(11*2960)*E29) -> 0.1918860414
A30: COPEIRAGEM | B30: 1 / 2.960 | E30: ='Custo por trabalhador'!E512 -> 4534.601502 | H30: =(1/2960)*E30 -> 1.531959967
F31: TOTAL: | H31: =SUM(H29:H30) -> 1.723846008
A33: BANHEIRO (PRODUTIVIDADE 300 M²/DIÁRIA)
A34: MÃO-DE-OBRA | B34: (1) PRODUTIVIDADE (1/M²) | E34: (2) PREÇO HOMEM-MÊS (R$) | H34: (1 X 2) SUB-TOTAL (R$/M²)
A35: ENCARREGADO | B35: 1 / (11 X 300) | E35: =Encarregado!C136 -> 6247.809508 | H35: =(1/(11*300)*E35) -> 1.893275609
A36: SERVENTE | B36: 1 / 300 | E36: ='Servente 8h'!C136 -> 5282.171144 | H36: =(1/300)*E36 -> 17.60723715
F37: TOTAL: | H37: =SUM(H35:H36) -> 19.50051275
A39: ESQUADRIA EXTERNA (PRODUTIVIDADE 380 M²/DIÁRIA)
A40: MÃO-DE-OBRA | B40: (1) PRODUTIVIDADE (1/M²) | C40: (2) Frequencia no mês horas | D40: (3) Jornada de Trabalho no Mês (Horas) | F40: (4) = (1 X 2 X3) KI | H40: (5) PREÇO HOMEM MÊS (R$) | I40: (4 X 5) SUB-TOTAL (R$/M²)
A41: ENCARREGADO | B41: 1 / 11 X 380) | C41: 16 | D41: 1 / 188,76 | F41: =(1/(14*380))*C41*(1/188.76) -> 1.593303029e-05 | H41: =Encarregado!C136 -> 6247.809508 | I41: =F41*H41 -> 0.09954653812
A42: SERVENTE | B42: 1 / ( 380) | C42: 16 | D42: 1 / 188,76 | F42: =(1/(380))*C42*(1/188.76) -> 0.000223062424 | H42: ='Servente 8h'!C136 -> 5282.171144 | I42: =F42*H42 -> 1.178253899
F43: TOTAL: | I43: =SUM(I41:I42) -> 1.277800438

Sheet Uniformes
A1: UNIFORMES e EPI's - COMPOSIÇÃO - VALOR ANUAL
A2: Item | B2: qte | C2: Orçamento 01 | D2: Orçamento 02 | E2: Orçamento 03 | F2: Valor Médio | G2: Valor Mensal Estimado
A3: Calça comprida com elástico e cordão, em gabardine ou brim. | B3: 4 | C3: 47.9 | D3: 51.99 | E3: 69 | F3: =AVERAGE(C3:E3) -> 56.29666667 | G3: =F3*B3 -> 225.1866667
A4: Camiseta malha fria, manga curta, com gola esporte, em gabardine com emblema/identificação da empresa pintado/bordado no tecido. | B4: 4 | C4: 34 | D4: 23.8 | E4: 43.99 | F4: =AVERAGE(C4:E4) -> 33.93 | G4: =F4*B4 -> 135.72
A5: Calçado: sapato de segurança (par), preto em couro, solado baixo, com palmilha antibacteriana, com certificado de aprovação - CA. | B5: 2 | C5: 58.1 | D5: 51.28 | E5: 54.18 | F5: 54.52 | G5: 109.04
A6: Protetor Solar (30 fps/120ml - mínimo) | B6: 2 | C6: 16.31 | D6: 13.9 | E6: 14.63 | F6: =AVERAGE(C6:E6) -> 14.94666667 | G6: =F6*B6 -> 29.89333333
A7: Mangote (par), manga de proteção solar, braços | B7: 2 | C7: 25.11 | D7: 20 | E7: 29.9 | F7: =AVERAGE(C7:E7) -> 25.00333333 | G7: =F7*B7 -> 50.00666667
A8: Máscara antipoeira, tipo PFF2 com válvula respiratória, na cor azul | B8: 16 | C8: 1 | D8: 1.9 | E8: 1.24 | F8: 1.38 | G8: 22.08
A9: Crachá de identificação, em PVC, com cordão | B9: 1 | C9: 7.4 | D9: 7.5 | E9: 6.85 | F9: =AVERAGE(C9:E9) -> 7.25 | G9: =F9*B9 -> 7.25
A10: Custo anual por Pessoa | G10: =SUM(G3:G9) -> 579.1766667

Sheet Materiais de limpeza
A1: MATERIAIS DE LIMPEZA - COMPOSIÇÃO - VALOR MENSAL
A2: Item | B2: Qte | C2: Orçamento 01 | D2: Orçamento 02 | E2: Orçamento 03 | F2: Valor Médio Unitário | G2: Valor Mensal Estimado
A3: Sabão em pó - 1Kg | B3: 6 | C3: 11.99 | D3: 13.33 | E3: 8 | F3: =AVERAGE(C3:E3) -> 11.10666667 | G3: =F3*B3 -> 66.64
A4: Sacos preto para lixo - 100L 100UN | B4: 5 | C4: 21.51 | D4: 19.64 | E4: 25.46 | F4: =AVERAGE(C4:E4) -> 22.20333333 | G4: =F4*B4 -> 111.0166667
A5: Sacos preto para lixo - 60 L 100UN | B5: 5 | C5: 13.67 | D5: 14.59 | E5: 14.9 | F5: 14.38666667 | G5: 71.93333333
A6: Desodorizante Bom Ar (360 ml, Lavanda) | B6: 20 | C6: 15.9 | D6: 13.9 | E6: 14.8 | F6: 14.86666667 | G6: 297.3333333
A7: Veja Multiuso - 500 ml | B7: 21 | C7: 5.1 | D7: 5.84 | E7: 5.4 | F7: 5.446666667 | G7: 114.38
A8: Limpa Alumínio - 500 ml | B8: 2 | C8: 3.1 | D8: 2.69 | E8: 2 | F8: 2.596666667 | G8: 5.193333333
A9: Água Sanitária - 1 Lt | B9: 5 | C9: 2.49 | D9: 3.89 | E9: 3.3 | F9: 3.226666667 | G9: 16.13333333
A10: Bucha de lavar louça | B10: 20 | C10: 0.99 | D10: =8.66/10 -> 0.866 | E10: =11.2/10 -> 1.12 | F10: 0.992 | G10: 19.84
A11: Sacos de pano para chão (branco) | B11: 30 | C11: 2.45 | D11: 4 | E11: 5 | F11: 3.816666667 | G11: 114.5
A12: Cloro extra forte 5 Lt (galão) | B12: 6 | C12: 19.69 | D12: 18.99 | E12: 23.84 | F12: 20.84 | G12: 125.04
A13: Sabonete líquido PEROLIZADO erva doce - 5 Lt (galão) | B13: 6 | C13: 17.9 | D13: 16.7 | E13: 19.46 | F13: 18.02 | G13: 108.12
A14: Rodo Pequeno de 40 cm (Santa Maria) | B14: 2 | C14: 19.89 | D14: 10.22 | E14: 18 | F14: 16.03666667 | G14: 32.07333333
A15: Rodo Grande de 60 cm (Santa Maria) | B15: 2 | C15: 24.75 | D15: 16.9 | E15: 25.46 | F15: 22.37 | G15: 44.74
A16: Álcool gel - 5 LITROS | B16: 5 | C16: 43.2 | D16: 52.9 | E16: 63.5 | F16: 53.2 | G16: 266
A17: Escova de lavar roupa - Condor | B17: 5 | C17: 4.33 | D17: 4.49 | E17: 3.5 | F17: 4.106666667 | G17: 20.53333333
A18: Bombril (Fardo de 08 unidades) | B18: 3 | C18: 2.25 | D18: 2 | E18: 3.24 | F18: 2.496666667 | G18: 7.49
A19: Cera líquida Auto Brilho p/ Ardósia-Inglesa (5L) | B19: 6 | C19: 63.74 | D19: 75.7 | E19: 67.1 | F19: 68.84666667 | G19: 413.08
A20: Flanela Branca cortada em 1 Metro (M) | B20: 20 | C20: 12.9 | D20: 12.9 | E20: 11.9 | F20: 12.56666667 | G20: 251.3333333
A21: Detergente floral 5 Lt - Start | B21: 5 | C21: 27.98 | D21: 31.49 | E21: 34.99 | F21: 31.48666667 | G21: 157.4333333
A22: Papel Toalha (Extra) branco econômico (fardo 5 pct) 20x21 cm com 10 | B22: 80 | C22: 18.4 | D22: 15.77 | E22: 18.72 | F22: 17.63 | G22: 1410.4
A23: Papel higiênico 30 mt x 10cm - branco (folha dupla) - fardo com 12 Mili | B23: 26 | C23: 19.9 | D23: 19.49 | E23: 19.9 | F23: 19.76333333 | G23: 513.8466667
A24: Detergente 500 ml - Ypê | B24: 20 | C24: 3.02 | D24: 2.63 | E24: 2.84 | F24: 2.83 | G24: 56.6
A25: Azulim 1 Lt | B25: 15 | C25: 8.69 | D25: 8.49 | E25: 7.4 | F25: 8.193333333 | G25: 122.9
A26: Desinfetante Floral 5 Lt | B26: 3 | C26: 18.73 | D26: 16.99 | E26: 15.39 | F26: 17.03666667 | G26: 51.11
A27: Escova para vaso sanitário com suporte | B27: 5 | C27: 9.2 | D27: 7 | E27: 5.99 | F27: 7.396666667 | G27: 36.98333333
A28: Vassoura de Nylon | B28: 3 | C28: 17.99 | D28: 14.69 | E28: 11.69 | F28: 14.79 | G28: 44.37
A29: Vassoura de piaçava - Chap Chap (Varre bem) | B29: 3 | C29: 12.48 | D29: 12 | E29: 15.9 | F29: 13.46 | G29: 40.38
A30: Sabão pastoso para lavar cerâmica 5 Lt | B30: 3 | C30: 25.9 | D30: 26.99 | E30: 20.15 | F30: 24.34666667 | G30: 73.04
A31: Ácido muriático 1 Lt | B31: 5 | C31: 7.9 | D31: 12 | E31: 8.25 | F31: 9.383333333 | G31: 46.91666667
A32: Frasco para Sabonete líquido em plástico de 500 ml transparente com válvula saboneteira tipo bico de pato | B32: 2 | C32: 2.85 | D32: 4.9 | E32: 3.85 | F32: 3.866666667 | G32: 7.733333333
A33: Vassoura para limpar teto com cabo e prolongador | B33: 1 | C33: 24.99 | D33: 24.8 | E33: 32.15 | F33: 27.31333333 | G33: 27.31333333
A34: Luvas P/M/G - 05 pares P e 10 pares M e G | B34: 25 | C34: 4.11 | D34: 6.19 | E34: 5.38 | F34: 5.226666667 | G34: 130.6666667
A35: Lixeira sem tampa (cesto plástico), 12 litros, preta | B35: 1 | C35: 15.68 | D35: 20 | E35: 12.11 | F35: =AVERAGE(C35:E35) -> 15.93 | G35: =F35*B35 -> 15.93
A36: Lixeira plástica com tampa e pedal, preta | B36: 1 | C36: 22.99 | D36: 22.9 | E36: 19.89 | F36: 21.92666667 | G36: 21.92666667
A37: Shampoo automotivo (5 litros) | B37: 2 | C37: 33.64 | D37: 45 | E37: 28.83 | F37: 35.82333333 | G37: 71.64666667
A38: Revitalizador de pneus, pretinho (5 litros) | B38: 2 | C38: 48.71 | D38: 46.9 | E38: 45 | F38: 46.87 | G38: 93.74
A39: Bloco de espuma poliéster, 08cm x 15cm x 23cm | B39: 10 | C39: 5.79 | D39: 6.9 | E39: 6.49 | F39: 6.393333333 | G39: 63.93333333
A40: Desengraxante (5 litros) | B40: 2 | C40: 37.05 | D40: 38.78 | E40: 34.92 | F40: 36.91666667 | G40: 73.83333333
A41: Limpa Vidros (5 litros) | B41: 1 | C41: 66.5 | D41: 54.35 | E41: 59.3 | F41: 60.05 | G41: 60.05
A42: Pulverizador/borrifador plástico transparente (500ml) | B42: 1 | C42: 8.99 | D42: 7.1 | E42: 5.96 | F42: 7.35 | G42: 7.35
A43: Querosene (frasco 900ml) | B43: 2 | C43: 20.69 | D43: 24.9 | E43: 22 | F43: 22.53 | G43: 45.06
A44: Pincel de trincha/multiuso, 3 polegadas | B44: 3 | C44: 11.39 | D44: 13.43 | E44: 9.9 | F44: 11.57333333 | G44: 34.72
A45: Gel de silicone para limpeza automotiva (litro) | B45: 2 | C45: 38.59 | D45: 30 | E45: 34 | F45: 34.19666667 | G45: 68.39333333
F46: TOTAL MENSAL | G46: =SUM(G3:G45) -> 5361.656667

Sheet Equipamentos
A1: Equipamentos - custo anual
A2: Item | B2: qte | C2: Orçamento 01 | D2: Orçamento 02 | E2: Orçamento 03 | F2: Valor Médio | G2: Valor Mensal Estimado
A3: Aspirador de pó e água, tipo industrial, mínimo 1300W, 20L | B3: 1 | C3: 506 | D3: 436.91 | E3: 407.55 | F3: =AVERAGE(C3:E3) -> 450.1533333 | G3: =F3*B3 -> 450.1533333
A4: Escada alumínio com 6 (seis) degraus | B4: 1 | C4: 179.9 | D4: 224.9 | E4: 188.78 | F4: =AVERAGE(C4:E4) -> 197.86 | G4: =F4*B4 -> 197.86
A5: Lavadora de alta pressão - Karcher ou similar mínimo 2500 libras | B5: 1 | C5: 1637.9 | D5: 1999 | E5: 1799.1 | F5: 1812 | G5: 1812
A6: Carrinho de mão, 65 litros | B6: 1 | C6: 399.9 | D6: 394.71 | E6: 329.9 | F6: 374.8366667 | G6: 374.8366667
A7: Cortador de grama elétrico, 04 rodas, minimo 1800 w | B7: 1 | C7: 777.9 | D7: 772.9 | E7: 899.99 | F7: 816.93 | G7: 816.93
A8: Tesoura de poda grama | B8: 1 | C8: 34.7 | D8: 35.15 | E8: 37.72 | F8: 35.85666667 | G8: 35.85666667
A9: Rastelo com cabo | B9: 1 | C9: 29.9 | D9: 27.5 | E9: 26.9 | F9: 28.1 | G9: 28.1
A10: Tesoura podão, corta galhos, cabo 60cm | B10: 1 | C10: 57.8 | D10: 74.95 | E10: 65.9 | F10: 66.21666667 | G10: 66.21666667
A11: Placas de sinalização piso tipo cavalete | B11: 4 | C11: 42.92 | D11: 30.74 | E11: 54.9 | F11: 42.85333333 | G11: 171.4133333
A12: Mangueira 3/4" 100 m | B12: 1 | C12: 559.9 | D12: 565.87 | E12: 354.93 | F12: 493.5666667 | G12: 493.5666667
A13: Balde 12 lts | B13: 6 | C13: 19.49 | D13: 14.95 | E13: 13.9 | F13: 16.11333333 | G13: 96.68
A14: Custo anual por Pessoa | G14: =SUM(G3:G13) -> 4543.613333

Sheet Desinsetização
A1: Detetização, desinsetização e desratização de ambientes da 1ª/SR - VALOR ANUAL (2 aplicações ao ano)
A2: ITEM | B2: DESCRICAO DOS SERVIÇOS | C2: Orçamento 1 | D2: Orçamento 2 | E2: Orçamento 3 | F2: PREÇO MÉDIO ANUAL
A3: 1 | B3: Detetização, desinsetização e desratização de ambientes da CODEVASF 1ª/SR - 2 aplicações por ano | C3: 2200 | D3: 2880 | E3: 2000 | F3: =AVERAGE(C3:E3) -> 2360
A4: ORÇAMENTO | B4: NOME DA EMPRESA | C4: CNPJ/CPF | D4: CONTATO | F4: TELEFONE
A5: 1 | B5: DESINSETIZADORA CAMPOS COMERCIAL LTDA | C5: 08.036.609/0001-22 | D5: Marcos Campos desinsetizadoracampos@bol.com.br | F5: (038) 3212.2225 (038) 9955.8370
A6: 2 | B6: K.R.S DEDETIZAÇÃO LTDA | C6: 33.705.521/0001-01 | D6: Kariny Ruas dedetizacaoaraujo@yahoo.com.br | F6: (38) 3215-6757 (38) 9 8825-3034
A7: 3 | B7: PREVIPRAGA CONTROLE DE PRAGAS LTDA | C7: 42.576.445/0001-64 | D7: MÁBSON LOPES previpragamoc@hotmail.com | F7: (38) 4141-9191

Sheet Painel de Preços
A1: COMPARATIVO: PESQUISA PAINEL DE PREÇOS E CONTRATAÇÕES SIMILARES FEITAS PELA ADMINISTRAÇÃO PÚBLICA X VALOR PROPOSTO CODEVASF - 1ª/SR
A2: Tipo de serviço | C2: Qtde de postos | D2: Clean Service e Conservação II Ltda | E2: Pontual Serviços Eempresarial Eireli | F2: Totalcob – Serviços Terceirizados Eireli | G2: Guima Conseco Const., Serviços e Com. Ltda. | H2: Arcolimp Serviços Gerais Ltda. | I2: Arauna Serviços Eespecializados Ltda. | J2: Preços médios observados (CCT 2023) | K2: Valor proposto por posto - CODEVASF 1ª/SR (CCT 2024)
A3: I | B3: SERVENTE DE LIMPEZA 8H | C3: 9 | G3: 6856.23 | H3: 5187.09 | I3: 4997.12 | J3: =AVERAGE(G3:I3) -> 5680.146667 | K3: 5288.646238
A4: II | B4: ENCARREGADO | C4: 1 | G4: 8657.25 | H4: 5577.7 | I4: 5405.16 | J4: =AVERAGE(G4:I4) -> 6546.703333 | K4: 6261.072914
A5: III | B5: ZELADOR | C5: 1 | D5: 4928.7 | E5: 5267.46 | F5: 5203.12 | J5: =AVERAGE(D5:F5) -> 5133.093333 | K5: 6270.690725
A6: IV | B6: COPEIRA * | C6: 1 | D6: =2758.26*220/150 -> 4045.448 | E6: =3242.1*220/150 -> 4755.08 | F6: =3131.89*220/150 -> 4593.438667 | J6: =AVERAGE(D6:F6) -> 4464.655556 | K6: 4543.481048
A7: * Os serviços de Copeira, no certame 0004/2023 da UASG 090013 (Justiça Federal), foram cotados com a previsão de carga horária de 150h mensais. Assim, foi necessária a conversão desses valores para 220h mensais, a fim de se gerar maior similaridade de condições quando comparados aos postos pretendidos pela CODEVASF-1ª/SR | D7: CNPJ: 41.979.078/0001-87 | E7: CNPJ: 22.688.729/0001-35 | F7: CNPJ: 10.398.338/0001-05 | G7: CNPJ: 59.519.603/0001-47 | H7: CNPJ: 05.576.482/0001-46 | I7: CNPJ: 04.900.474/0001-40
D8: UASG 090013-JUSTICA FEDERAL DE PRIMEIRO GRAU EM MG | G8: UASG 154069-FUNDAÇÃO UNIV. FEDERAL DE SÃO JOÃO DEL-REI
D9: Pregão nº: Nº 00004/2023 | G9: Pregão nº: Nº 00039/2023

Sheet Global (hidden)
A1: PLANILHA DE CUSTOS E FORMAÇÃO DE PREÇOS
A2: MODELO PARA A CONSOLIDAÇÃO E APRESENTAÇÃO DE PROPOSTAS
A3: Com ajustes após publicação da Lei n° 13.467, de 2017.
A6: Módulo 1 - Composição da Remuneração
A8: 1 | B8: Composição da Remuneração | C8: Valor (R$)
A9: A | B9: Salário-Base | C9: =SUM('Servente 8h:Copeira'!F9) -> 20016.58 | F9: =C9*'ORÇAMENTO ESTIMADO'!$G$12 -> 20016.58
A10: B | B10: Adicional de Periculosidade | C10: =SUM('Servente 8h:Copeira'!F10) -> 0 | F10: =C10*'ORÇAMENTO ESTIMADO'!$G$12 -> 0
A11: C | B11: Adicional de Insalubridade | C11: =SUM('Servente 8h:Copeira'!F11) -> 0 | F11: =C11*'ORÇAMENTO ESTIMADO'!$G$12 -> 0
A12: D | B12: Adicional Noturno | C12: =SUM('Servente 8h:Copeira'!F12) -> 0 | F12: =C12*'ORÇAMENTO ESTIMADO'!$G$12 -> 0
A13: E | B13: Adicional de Hora Noturna Reduzida | C13: =SUM('Servente 8h:Copeira'!F13) -> 0 | F13: =C13*'ORÇAMENTO ESTIMADO'!$G$12 -> 0
C14: =SUM('Servente 8h:Copeira'!F14) -> 0 | F14: =C14*'ORÇAMENTO ESTIMADO'!$G$12 -> 0
A15: G | B15: Outros (especificar) | C15: =SUM('Servente 8h:Copeira'!F15) -> 0 | F15: =C15*'ORÇAMENTO ESTIMADO'!$G$12 -> 0
A16: Total | C16: =SUM(C9:C15) -> 20016.58 | F16: =C16*'ORÇAMENTO ESTIMADO'!$G$12 -> 20016.58
F17: =C17*'ORÇAMENTO ESTIMADO'!$G$12 -> 0
F18: =C18*'ORÇAMENTO ESTIMADO'!$G$12 -> 0
A19: Módulo 2 - Encargos e Benefícios Anuais, Mensais e Diários | F19: =C19*'ORÇAMENTO ESTIMADO'!$G$12 -> 0
F20: =C20*'ORÇAMENTO ESTIMADO'!$G$12 -> 0
A21: Submódulo 2.1 - 13º (décimo terceiro) Salário, Férias e Adicional de Férias | F21: =C21*'ORÇAMENTO ESTIMADO'!$G$12 -> 0
F22: =C22*'ORÇAMENTO ESTIMADO'!$G$12 -> 0
A23: 2.1 | B23: 13º (décimo terceiro) Salário, Férias e Adicional de Férias | C23: Valor (R$) | F23: =C23*'ORÇAMENTO ESTIMADO'!$G$12 -> 
A24: A | B24: 13º (décimo terceiro) Salário | C24: =SUM('Servente 8h:Copeira'!F24) -> 1668.048333 | F24: =C24*'ORÇAMENTO ESTIMADO'!$G$12 -> 1668.048333
A25: B | B25: Férias e Adicional de Férias | C25: =SUM('Servente 8h:Copeira'!F25) -> 2160.116111 | F25: =C25*'ORÇAMENTO ESTIMADO'!$G$12 -> 2160.116111
A26: Total | C26: =SUM(C24:C25) -> 3828.164444 | F26: =C26*'ORÇAMENTO ESTIMADO'!$G$12 -> 3828.164444
F27: =C27*'ORÇAMENTO ESTIMADO'!$G$12 -> 0
F28: =C28*'ORÇAMENTO ESTIMADO'!$G$12 -> 0
A29: Submódulo 2.2 - Encargos Previdenciários (GPS), Fundo de Garantia por Tempo de Serviço (FGTS) e outras contribuições. | F29: =C29*'ORÇAMENTO ESTIMADO'!$G$12 -> 0
F30: =C30*'ORÇAMENTO ESTIMADO'!$G$12 -> 0
A31: 2.2 | B31: GPS, FGTS e outras contribuições | C31: Percentual (%) | D31: Valor (R$) | F31: =C31*'ORÇAMENTO ESTIMADO'!$G$12 -> 
A32: A | B32: INSS | C32: ='Custo por trabalhador'!B109 -> 0.2 | D32: =SUM('Servente 8h:Copeira'!F32) -> 4781.738556 | F32: =D32*'ORÇAMENTO ESTIMADO'!$G$12 -> 4781.738556
A33: B | B33: Salário Educação | C33: ='Custo por trabalhador'!B110 -> 0.025 | D33: =SUM('Servente 8h:Copeira'!F33) -> 597.7173194 | F33: =D33*'ORÇAMENTO ESTIMADO'!$G$12 -> 597.7173194
A34: C | B34: SAT | C34: ='Custo por trabalhador'!B111 -> 0.03 | D34: =SUM('Servente 8h:Copeira'!F34) -> 717.2607833 | F34: =D34*'ORÇAMENTO ESTIMADO'!$G$12 -> 717.2607833
A35: D | B35: SESC ou SESI | C35: ='Custo por trabalhador'!B112 -> 0.015 | D35: =SUM('Servente 8h:Copeira'!F35) -> 358.6303917 | F35: =D35*'ORÇAMENTO ESTIMADO'!$G$12 -> 358.6303917
A36: E | B36: SENAI - SENAC | C36: ='Custo por trabalhador'!B113 -> 0.01 | D36: =SUM('Servente 8h:Copeira'!F36) -> 239.0869278 | F36: =D36*'ORÇAMENTO ESTIMADO'!$G$12 -> 239.0869278
A37: F | B37: SEBRAE | C37: ='Custo por trabalhador'!B114 -> 0.006 | D37: =SUM('Servente 8h:Copeira'!F37) -> 143.4521567 | F37: =D37*'ORÇAMENTO ESTIMADO'!$G$12 -> 143.4521567
A38: G | B38: INCRA | C38: ='Custo por trabalhador'!B115 -> 0.002 | D38: =SUM('Servente 8h:Copeira'!F38) -> 47.81738556 | F38: =D38*'ORÇAMENTO ESTIMADO'!$G$12 -> 47.81738556
A39: H | B39: FGTS | C39: ='Custo por trabalhador'!B116 -> 0.08 | D39: =SUM('Servente 8h:Copeira'!F39) -> 1912.695422 | F39: =D39*'ORÇAMENTO ESTIMADO'!$G$12 -> 1912.695422
A40: Total | D40: =SUM(D32:D39) -> 8798.398942 | F40: =D40*'ORÇAMENTO ESTIMADO'!$G$12 -> 8798.398942
F41: =C41*'ORÇAMENTO ESTIMADO'!$G$12 -> 0
F42: =C42*'ORÇAMENTO ESTIMADO'!$G$12 -> 0
A43: Submódulo 2.3 - Benefícios Mensais e Diários. | F43: =C43*'ORÇAMENTO ESTIMADO'!$G$12 -> 0
F44: =C44*'ORÇAMENTO ESTIMADO'!$G$12 -> 0
A45: 2.3 | B45: Benefícios Mensais e Diários | C45: Valor (R$) | F45: =C45*'ORÇAMENTO ESTIMADO'!$G$12 -> 
A46: A | B46: Transporte | C46: =SUM('Servente 8h:Copeira'!F46) -> 1043.0052 | F46: =C46*'ORÇAMENTO ESTIMADO'!$G$12 -> 1043.0052
A47: B | B47: Auxílio-Refeição/Alimentação | C47: =SUM('Servente 8h:Copeira'!F47) -> 5753.088 | F47: =C47*'ORÇAMENTO ESTIMADO'!$G$12 -> 5753.088
A48: C | B48: Assistência médica e familiar | C48: =SUM('Servente 8h:Copeira'!F48) -> 565.8 | F48: =C48*'ORÇAMENTO ESTIMADO'!$G$12 -> 565.8
A49: D | B49: Seguro de vida, invalidez e funeral | C49: =SUM('Servente 8h:Copeira'!F49) -> 23.4972 | F49: =C49*'ORÇAMENTO ESTIMADO'!$G$12 -> 23.4972
A50: Total | C50: =SUM(C46:C49) -> 7385.3904 | F50: =C50*'ORÇAMENTO ESTIMADO'!$G$12 -> 7385.3904
F51: =C51*'ORÇAMENTO ESTIMADO'!$G$12 -> 0
F52: =C52*'ORÇAMENTO ESTIMADO'!$G$12 -> 0
A53: Quadro-Resumo do Módulo 2 - Encargos e Benefícios anuais, mensais e diários | F53: =C53*'ORÇAMENTO ESTIMADO'!$G$12 -> 0
F54: =C54*'ORÇAMENTO ESTIMADO'!$G$12 -> 0
A55: 2 | B55: Encargos e Benefícios Anuais, Mensais e Diários | C55: Valor (R$) | F55: =C55*'ORÇAMENTO ESTIMADO'!$G$12 -> 
A56: 2.1 | B56: 13º (décimo terceiro) Salário, Férias e Adicional de Férias | C56: ='Custo por trabalhador'!B218 -> 299.6836111 | F56: =C56*'ORÇAMENTO ESTIMADO'!$G$12 -> 299.6836111
A57: 2.2 | B57: GPS, FGTS e outras contribuições | C57: ='Custo por trabalhador'!C218 -> 677.4562089 | F57: =C57*'ORÇAMENTO ESTIMADO'!$G$12 -> 677.4562089
A58: 2.3 | B58: Benefícios Mensais e Diários | C58: ='Custo por trabalhador'!D218 -> 623.0583 | F58: =C58*'ORÇAMENTO ESTIMADO'!$G$12 -> 623.0583
A59: Total | C59: =SUM(C56:C58) -> 1600.19812 | F59: =C59*'ORÇAMENTO ESTIMADO'!$G$12 -> 1600.19812
F60: =C60*'ORÇAMENTO ESTIMADO'!$G$12 -> 0
F61: =C61*'ORÇAMENTO ESTIMADO'!$G$12 -> 0
A62: Módulo 3 - Provisão para Rescisão | F62: =C62*'ORÇAMENTO ESTIMADO'!$G$12 -> 0
F63: =C63*'ORÇAMENTO ESTIMADO'!$G$12 -> 0
A64: 3 | B64: Provisão para Rescisão | C64: Valor (R$) | F64: =C64*'ORÇAMENTO ESTIMADO'!$G$12 -> 
A65: A | B65: Aviso Prévio Indenizado | C65: =SUM('Servente 8h:Copeira'!F65) -> 1245.254197 | F65: =C65*'ORÇAMENTO ESTIMADO'!$G$12 -> 1245.254197
A66: B | B66: Incidência do FGTS sobre o Aviso Prévio Indenizado | C66: =SUM('Servente 8h:Copeira'!F66) -> 0 | F66: =C66*'ORÇAMENTO ESTIMADO'!$G$12 -> 0
A67: C | B67: Multa do FGTS e contribuição social sobre o Aviso Prévio Indenizado | C67: =SUM('Servente 8h:Copeira'!F67) -> 344.285176 | F67: =C67*'ORÇAMENTO ESTIMADO'!$G$12 -> 344.285176
A68: D | B68: Aviso Prévio Trabalhado | C68: =SUM('Servente 8h:Copeira'!F68) -> 428.7668227 | F68: =C68*'ORÇAMENTO ESTIMADO'!$G$12 -> 428.7668227
A69: E | B69: Incidência dos encargos do submódulo 2.2 sobre o Aviso Prévio Trabalhado | C69: =SUM('Servente 8h:Copeira'!F69) -> 0 | F69: =C69*'ORÇAMENTO ESTIMADO'!$G$12 -> 0
A70: F | B70: Multa do FGTS e contribuição social sobre o Aviso Prévio Trabalhado | C70: =SUM('Servente 8h:Copeira'!F70) -> 525.9912411 | F70: =C70*'ORÇAMENTO ESTIMADO'!$G$12 -> 525.9912411
A71: Total | C71: =SUM(C65:C70) -> 2544.297437 | F71: =C71*'ORÇAMENTO ESTIMADO'!$G$12 -> 2544.297437
F72: =C72*'ORÇAMENTO ESTIMADO'!$G$12 -> 0
F73: =C73*'ORÇAMENTO ESTIMADO'!$G$12 -> 0
A74: Módulo 4 - Custo de Reposição do Profissional Ausente | F74: =C74*'ORÇAMENTO ESTIMADO'!$G$12 -> 0
F75: =C75*'ORÇAMENTO ESTIMADO'!$G$12 -> 0
F76: =C76*'ORÇAMENTO ESTIMADO'!$G$12 -> 0
A77: Submódulo 4.1 - Ausências Legais | F77: =C77*'ORÇAMENTO ESTIMADO'!$G$12 -> 0
F78: =C78*'ORÇAMENTO ESTIMADO'!$G$12 -> 0
A79: 4.1 | B79: Ausências Legais | C79: Valor (R$) | F79: =C79*'ORÇAMENTO ESTIMADO'!$G$12 -> 
A80: A | B80: Férias | C80: =SUM('Servente 8h:Copeira'!F80) -> 0 | F80: =C80*'ORÇAMENTO ESTIMADO'!$G$12 -> 0
A81: B | B81: Ausências Legais | C81: =SUM('Servente 8h:Copeira'!F81) -> 3631.686665 | F81: =C81*'ORÇAMENTO ESTIMADO'!$G$12 -> 3631.686665
A82: C | B82: Licença-Paternidade | C82: =SUM('Servente 8h:Copeira'!F82) -> 0 | F82: =C82*'ORÇAMENTO ESTIMADO'!$G$12 -> 0
A83: D | B83: Ausência por acidente de trabalho | C83: =SUM('Servente 8h:Copeira'!F83) -> 0 | F83: =C83*'ORÇAMENTO ESTIMADO'!$G$12 -> 0
A84: E | B84: Afastamento Maternidade | C84: =SUM('Servente 8h:Copeira'!F84) -> 0 | F84: =C84*'ORÇAMENTO ESTIMADO'!$G$12 -> 0
A85: F | B85: Outros (especificar) | C85: =SUM('Servente 8h:Copeira'!F85) -> 0 | F85: =C85*'ORÇAMENTO ESTIMADO'!$G$12 -> 0
A86: Total | C86: =SUM(C81:C85) -> 3631.686665 | F86: =C86*'ORÇAMENTO ESTIMADO'!$G$12 -> 3631.686665
F87: =C87*'ORÇAMENTO ESTIMADO'!$G$12 -> 0
F88: =C88*'ORÇAMENTO ESTIMADO'!$G$12 -> 0
A89: Submódulo 4.2 - Intrajornada | F89: =C89*'ORÇAMENTO ESTIMADO'!$G$12 -> 0
F90: =C90*'ORÇAMENTO ESTIMADO'!$G$12 -> 0
A91: 4.2 | B91: Intrajornada | C91: Valor (R$) | F91: =C91*'ORÇAMENTO ESTIMADO'!$G$12 -> 
A92: A | B92: Intervalo para repouso e alimentação | C92: =SUM('Servente 8h:Copeira'!F92) -> 0 | F92: =C92*'ORÇAMENTO ESTIMADO'!$G$12 -> 0
A93: Total | C93: =C92 -> 0 | F93: =C93*'ORÇAMENTO ESTIMADO'!$G$12 -> 0
F94: =C94*'ORÇAMENTO ESTIMADO'!$G$12 -> 0
F95: =C95*'ORÇAMENTO ESTIMADO'!$G$12 -> 0
A96: Quadro-Resumo do Módulo 4 - Custo de Reposição do Profissional Ausente | F96: =C96*'ORÇAMENTO ESTIMADO'!$G$12 -> 0
F97: =C97*'ORÇAMENTO ESTIMADO'!$G$12 -> 0
A98: 4 | B98: Custo de Reposição do Profissional Ausente | C98: Valor (R$) | F98: =C98*'ORÇAMENTO ESTIMADO'!$G$12 -> 
A99: 4.1 | B99: Ausências Legais | C99: =C86 -> 3631.686665 | F99: =C99*'ORÇAMENTO ESTIMADO'!$G$12 -> 3631.686665
A100: 4.2 | B100: Intrajornada | C100: =C93 -> 0 | F100: =C100*'ORÇAMENTO ESTIMADO'!$G$12 -> 0
A101: Total | C101: =SUM(C99:C100) -> 3631.686665 | F101: =C101*'ORÇAMENTO ESTIMADO'!$G$12 -> 3631.686665
F102: =C102*'ORÇAMENTO ESTIMADO'!$G$12 -> 0
F103: =C103*'ORÇAMENTO ESTIMADO'!$G$12 -> 0
A104: Módulo 5 - Insumos Diversos | F104: =C104*'ORÇAMENTO ESTIMADO'!$G$12 -> 0
F105: =C105*'ORÇAMENTO ESTIMADO'!$G$12 -> 0
A106: 5 | B106: Insumos Diversos | C106: Valor (R$) | F106: =C106*'ORÇAMENTO ESTIMADO'!$G$12 -> 
A107: A | B107: Uniformes | C107: =SUM('Servente 8h:Copeira'!F107) -> 579.1766667 | F107: =C107*'ORÇAMENTO ESTIMADO'!$G$12 -> 579.1766667
A108: B | B108: Materiais | C108: =SUM('Servente 8h:Copeira'!F108) -> 5361.656667 | F108: =C108*'ORÇAMENTO ESTIMADO'!$G$12 -> 5361.656667
A109: C | B109: Equipamentos | C109: =SUM('Servente 8h:Copeira'!F109) -> 97.37155093 | F109: =C109*'ORÇAMENTO ESTIMADO'!$G$12 -> 97.37155093
A110: D | B110: Outros (especificar) | C110: =SUM('Servente 8h:Copeira'!F110) -> 0 | F110: =C110*'ORÇAMENTO ESTIMADO'!$G$12 -> 0
A111: Total | C111: =SUM(C107:C110) -> 6038.204884 | F111: =C111*'ORÇAMENTO ESTIMADO'!$G$12 -> 6038.204884
F112: =C112*'ORÇAMENTO ESTIMADO'!$G$12 -> 0
F113: =C113*'ORÇAMENTO ESTIMADO'!$G$12 -> 0
A114: Módulo 6 - Custos Indiretos, Tributos e Lucro | F114: =C114*'ORÇAMENTO ESTIMADO'!$G$12 -> 0
F115: =C115*'ORÇAMENTO ESTIMADO'!$G$12 -> 0
A116: 6 | B116: Custos Indiretos, Tributos e Lucro | C116: Percentual (%) | D116: Valor (R$) | F116: =C116*'ORÇAMENTO ESTIMADO'!$G$12 -> 
A117: A | B117: Custos Indiretos | C117: ='Custo por trabalhador'!B481 -> 0.03 | D117: =SUM('Servente 8h:Copeira'!F117) -> 1569.200133 | F117: =D117*'ORÇAMENTO ESTIMADO'!$G$12 -> 1569.200133
A118: B | B118: Lucro | C118: ='Custo por trabalhador'!B483 -> 0.0679 | D118: =SUM('Servente 8h:Copeira'!F118) -> 3658.171657 | F118: =D118*'ORÇAMENTO ESTIMADO'!$G$12 -> 3658.171657
A119: C | B119: Tributos | C119: =SUM(C120:C122) -> 0.0665 | D119: =SUM('Servente 8h:Copeira'!F119) -> 7047.74018 | F119: =D119*'ORÇAMENTO ESTIMADO'!$G$12 -> 7047.74018
B120: C.1. Tributos Federais (especificar) | C120: 0.0365 | D120: =SUM('Servente 8h:Copeira'!F120) -> 0 | F120: =D120*'ORÇAMENTO ESTIMADO'!$G$12 -> 0
B121: C.2. Tributos Estaduais (especificar) | D121: =SUM('Servente 8h:Copeira'!F121) -> 9035.877016 | F121: =D121*'ORÇAMENTO ESTIMADO'!$G$12 -> 9035.877016
B122: C.3. Tributos Municipais (especificar) | C122: 0.03 | D122: =SUM('Servente 8h:Copeira'!F122) -> 0 | F122: =D122*'ORÇAMENTO ESTIMADO'!$G$12 -> 0
A123: Total | C123: ='Custo por trabalhador'!C490 -> 0.2722332016 | D123: =SUM('Servente 8h:Copeira'!F123) -> 12275.11197 | F123: =D123*'ORÇAMENTO ESTIMADO'!$G$12 -> 12275.11197
F124: =C124*'ORÇAMENTO ESTIMADO'!$G$12 -> 0
F125: =C125*'ORÇAMENTO ESTIMADO'!$G$12 -> 0
A126: 2. QUADRO-RESUMO DO CUSTO POR EMPREGADO | F126: =C126*'ORÇAMENTO ESTIMADO'!$G$12 -> 0
F127: =C127*'ORÇAMENTO ESTIMADO'!$G$12 -> 0
B128: Mão de obra vinculada à execução contratual (valor por empregado) | C128: Valor (R$) | F128: =C128*'ORÇAMENTO ESTIMADO'!$G$12 -> 
A129: A | B129: Módulo 1 - Composição da Remuneração | C129: =SUM('Servente 8h:Copeira'!F129) -> 20016.58 | F129: =C129*'ORÇAMENTO ESTIMADO'!$G$12 -> 20016.58
A130: B | B130: Módulo 2 - Encargos e Benefícios Anuais, Mensais e Diários | C130: =SUM('Servente 8h:Copeira'!F130) -> 20075.90212 | F130: =C130*'ORÇAMENTO ESTIMADO'!$G$12 -> 20075.90212
A131: C | B131: Módulo 3 - Provisão para Rescisão | C131: =SUM('Servente 8h:Copeira'!F131) -> 2544.297437 | F131: =C131*'ORÇAMENTO ESTIMADO'!$G$12 -> 2544.297437
A132: D | B132: Módulo 4 - Custo de Reposição do Profissional Ausente | C132: =SUM('Servente 8h:Copeira'!F132) -> 3631.686665 | F132: =C132*'ORÇAMENTO ESTIMADO'!$G$12 -> 3631.686665
A133: E | B133: Módulo 5 - Insumos Diversos | C133: =SUM('Servente 8h:Copeira'!F133) -> 6038.204884 | F133: =C133*'ORÇAMENTO ESTIMADO'!$G$12 -> 6038.204884
A134: Subtotal (A + B +C+ D+E) | C134: =SUM('Servente 8h:Copeira'!F134) -> 52306.67111 | F134: =C134*'ORÇAMENTO ESTIMADO'!$G$12 -> 52306.67111 | G134: =C130+C131+C132-C50 -> 18866.49582
A135: F | B135: Módulo 6 – Custos Indiretos, Tributos e Lucro | C135: =SUM('Servente 8h:Copeira'!F135) -> 12275.11197 | F135: =C135*'ORÇAMENTO ESTIMADO'!$G$12 -> 12275.11197
A136: Valor Total por Empregado | C136: =SUM('Servente 8h:Copeira'!F136) -> 64581.78308 | F136: =C136*'ORÇAMENTO ESTIMADO'!$G$12 -> 64581.78308 | G136: =G134/F129 -> 0.9425434226

Sheet Base (hidden)
E3: Custo Adm | F3: 0.03
E4: Lucro | F4: 0.0658 | M4: LANCE
E5: Tributação | F5: Lucro Real
M7: ='ORÇAMENTO ESTIMADO'!F22 -> 774981.3969
C8: Estimado | D8: 525659.18
C9: % do Estimado | D9: =M7/D8 -> 1.474303934
